Workbook

Sheet 1TA
A1: 1TA | Z1: LEGENDA
A2: N° | B2: Alunno | C2: Presente | D2: Sex | E2: Anno | F2: Peso | G2: Statura | H2: BMI | I2: S/D | K2: Sportivo-Nsportivo-Intermedio | N2: Flessibilità | O2: Ldf | P2: Velocità | Q2: Destrezza | R2: Volley | S2: Basket | T2: Note | V2: Sport | Z2: COLONNA | AA2: FUNZIONE | AC2: SIMBOLO
A3: 1 | B3: BAGGIO CRISTIAN | C3: X | D3: M | E3: 2003 | F3: 63.3 | G3: 159 | H3: =IF(C3 = "X",F3/(G3/100)^2,"") -> 25.03856651 | I3: D | K3: S | N3: 5 | O3: 180 | P3: 535 | R3: ++ | S3: ++ | T3: =IF(AND(C3<>"X",B3<>""),"Assente",IF(AND(B3="",C3="X"),"??","")) ->  | U3: =IF(AND(C3="X",D3="M"),IF(H3<>"",IF(H3<20.7,"Sottopeso",IF(H3>27.8,"Sovrappeso","Normopeso")),""),IF(AND(C3="X",D3="F"),IF(H3<>"",IF(H3<19.1,"Sottopeso",IF(H3>27.3,"Sovrappeso","Normopeso")),""),"")) -> Normopeso | Z3: I-J | AA3: MANCINO O DESTRO | AC3: S/D
A4: 2 | B4: BARTOCCI MATTEO | C4: X | D4: M | E4: 2001 | F4: 70.4 | G4: 176 | H4: =IF(C4 = "X",F4/(G4/100)^2,"") -> 22.72727273 | I4: D | K4: S | R4: ++ | S4: ++ | T4: =IF(AND(C4<>"X",B4<>""),"Assente",IF(AND(B4="",C4="X"),"??","")) ->  | U4: =IF(AND(C4="X",D4="M"),IF(H4<>"",IF(H4<20.7,"Sottopeso",IF(H4>27.8,"Sovrappeso","Normopeso")),""),IF(AND(C4="X",D4="F"),IF(H4<>"",IF(H4<19.1,"Sottopeso",IF(H4>27.3,"Sovrappeso","Normopeso")),""),"")) -> Normopeso | Z4: K-L-M | AA4: SPORTIVO - NON SPORTIVO - INTERMEDIO | AC4: S/N/I
A5: 3 | B5: CONTU FLAMINIA | C5: X | D5: F | E5: 2002 | F5: 42.8 | G5: 161 | H5: 16.51170865 | I5: D | K5: N | N5: 3 | O5: 155 | P5: 700 | R5: ++ | S5: = | U5: Sottopeso | Z5: O | AA5: SALTO IN LUNGO DA FERMO | AC5: NUMERICO
A6: 4 | B6: DORE DENNIS | C6: X | D6: M | E6: 2002 | F6: 85.6 | G6: 164 | H6: 31.82629387 | I6: S | K6: N | N6: 0 | O6: 160 | P6: 588 | R6: ++ | S6: ++ | U6: Sovrappeso | Z6: SPORT | AA6: ALUNNO SELEZIONATO PER SQUADRA | AC6: X
A7: 5 | B7: FALCONE SIMONE | C7: X | D7: M | E7: 2002 | F7: 52.1 | G7: 169 | H7: 18.24165821 | I7: D | K7: I | N7: -3 | O7: 196 | P7: 475 | R7: + | S7: ++ | U7: Sottopeso
A8: 6 | B8: FIORELLI LORENZO | C8: X | D8: M | E8: 2002 | F8: 55.7 | G8: 163 | H8: 20.96428168 | I8: D | K8: S | N8: -21 | O8: 152 | P8: 507 | R8: + | S8: = | U8: Normopeso | Z8: TUTTI I DATI VANNO INSERITI IN FORMATO CAPSLOCK (MAIUSCOLO)
A9: 7 | B9: HAREB MHD ABDUL | C9: X | D9: M | E9: 2001 | F9: 61.6 | G9: 176 | H9: 19.88636364 | I9: D | K9: S | N9: 0 | O9: 234 | P9: 450 | R9: + | S9: + | U9: Sottopeso
A10: 8 | B10: IEBBA FEDERICO | C10: X | D10: M | E10: 2002 | F10: 69 | G10: 172 | H10: 23.32341806 | I10: D | K10: N | N10: -5 | O10: 178 | P10: 594 | R10: = | S10: + | U10: Normopeso
A11: 9 | B11: INGOGLIA LUCA | C11: X | D11: M | E11: 2002 | F11: 62.7 | G11: 166 | H11: 22.75366526 | I11: S | K11: N | N11: -16 | O11: 157 | P11: 572 | R11: = | S11: + | U11: Normopeso
A12: 10 | B12: LAPICIUS OCTAVIAN | C12: X | D12: M | E12: 2001 | F12: 59.3 | G12: 164 | H12: 22.04788816 | I12: D | K12: S | N12: 11 | O12: 204 | P12: 520 | R12: ++ | S12: ++ | U12: Normopeso
A13: 11 | B13: LORENZI MATTEO | C13: X | D13: M | E13: 2002 | F13: 75 | G13: 175 | H13: 24.48979592 | I13: S | K13: S | N13: -13 | O13: 151 | R13: + | S13: + | U13: Normopeso
A14: 12 | B14: MARCELLA VINCENZO | C14: X | D14: M | E14: 2002 | F14: 63.2 | G14: 171 | H14: 21.61348791 | I14: S | K14: I | N14: -28 | O14: 182 | P14: 462 | R14: = | S14: + | U14: Normopeso
A15: 13 | B15: MONALDO FEDERICO | C15: X | D15: M | E15: 2002 | F15: 81.9 | G15: 172 | H15: 27.68388318 | I15: D | K15: S | N15: -8 | O15: 162 | P15: 515 | R15: ++ | S15: + | U15: Normopeso
A16: 14 | B16: PACIOTTI DANIEL | C16: X | D16: M | E16: 2002 | F16: 74.5 | G16: 180 | H16: 22.99382716 | I16: D | K16: S | N16: 11 | O16: 215 | P16: 427 | R16: = | S16: + | U16: Normopeso
A17: 15 | B17: PALERMO ANDREA | C17: X | D17: M | E17: 2002 | F17: 47.7 | G17: 172 | H17: 16.12358031 | I17: D | K17: N | N17: -11 | O17: 204 | P17: 464 | R17: + | S17: ++ | U17: Sottopeso
A18: 16 | B18: PASTORIN LAWRENCE IVAN | C18: X | D18: M | E18: 2003 | F18: 53.2 | G18: 163 | H18: 20.02333547 | I18: D | K18: S | N18: 8 | O18: 211 | P18: 453 | R18: + | S18: + | U18: Sottopeso
A19: 17 | B19: RUELLO NICOLÒ | D19: M | E19: 2000 | T19: Assente
A20: 18 | B20: SCIPIONI SIMONE | C20: X | D20: M | E20: 2001 | F20: 108.4 | G20: 170 | H20: 37.50865052 | I20: D | K20: N | N20: 10 | O20: 131 | R20: + | S20: + | U20: Sovrappeso
A21: 19 | B21: SIUM MOHAMMED | C21: X | D21: M | E21: 2001 | F21: 54.7 | G21: 167 | H21: 19.61346768 | I21: D | K21: S | N21: 0 | O21: 240 | P21: 434 | R21: = | S21: = | U21: Sottopeso
A22: 20 | B22: TANARA MATTIA | C22: X | D22: M | E22: 2002 | F22: 70.2 | G22: 178 | H22: 22.1562934 | I22: D | K22: S | N22: 2 | O22: 152 | P22: 544 | R22: ++ | S22: = | U22: Normopeso
A23: 21 | B23: TENSI FEDERICO | C23: X | D23: M | E23: 2002 | F23: 76.6 | G23: 175 | H23: 25.0122449 | I23: D | K23: I | N23: -18 | O23: 151 | R23: = | S23: = | U23: Normopeso
A24: 22 | B24: ULLAH JAHID | C24: X | D24: M | E24: 2000 | F24: 74.2 | G24: 170 | H24: 25.67474048 | I24: D | K24: S | N24: 10 | O24: 170 | P24: 541 | R24: + | S24: = | U24: Normopeso
A25: 23 | B25: ZANNINO FABIO | C25: X | D25: M | E25: 2002 | F25: 63.3 | G25: 157 | H25: 25.68055499 | I25: D | K25: I | N25: -10 | O25: 169 | P25: 530 | R25: ++ | S25: + | U25: Normopeso | V25: X
A26: 24 | B26: SOCA VALERIA | C26: X | D26: F | E26: 1999 | P26: 588
A27: 25 | B27: MARCU CIOBANU | C27: X | D27: M
A28: 26
A29: 27
A30: 28
A31: 29
A32: 30
B35: Alunni : | C35: =COUNTIF(B3:B32,"<>"&"") -> 25 | I35: D | J35: S | K35: S | L35: N | M35: I
B36: Media | C36: =COUNTIF(C3:C32,"X")/C35 -> 0.96 | D36: =(COUNTIFS(D3:D32,"M",C3:C32,"X")+COUNTIFS(D3:D32,"F",C3:C32,"X"))/C39 -> 1 | E36: =AVERAGE(E3:E32) -> 2001.583333 | F36: =AVERAGEIFS(F3:F32,C3:C32,"X") -> 66.60909091 | G36: =AVERAGEIFS(G3:G32,C3:C32,"X") -> 169.0909091 | H36: =AVERAGEIFS(H3:H32,C3:C32,"X") ->  | I36: =(COUNTIFS(I3:I32,"D",C3:C32,"X")/C39) -> 0.75 | J36: =(COUNTIFS(I3:I32,"S",C3:C32,"X")/C39) -> 0.1666666667 | K36: =(COUNTIFS(K3:K32,"S",C3:C32,"X")/C39) -> 0.5 | L36: =(COUNTIFS(K3:K32,"N",C3:C32,"X")/C39) -> 0.25 | M36: =(COUNTIFS(K3:K32,"I",C3:C32,"X")/C39) -> 0.1666666667 | N36: =AVERAGEIFS(N3:N32,C3:C32,"X") -> -3.476190476 | O36: =AVERAGEIFS(O3:O32,C3:C32,"X") -> 178.7619048 | P36: =AVERAGEIFS(P3:P32,C3:C32,"X") -> 521 | Q36: =AVERAGEIFS(Q3:Q32,C3:C32,"X") ->  | R36: =COUNTIF(R$3:R$32,"=++")/COUNTIFS(R$3:R$32,"<>X",R$3:R$32,"<>") -> 0.3636363636 | S36: =COUNTIF(S$3:S$32,"=++")/COUNTIFS(S$3:S$32,"<>X",S$3:S$32,"<>") -> 0.2727272727
B37: Media maschi | C37: =COUNTIFS(C3:C32,"X",D3:D32,"M")/C35 -> 0.88 | D37: =COUNTIFS(D3:D32,"M",C3:C32,"X")/C39 -> 0.9166666667 | E37: =AVERAGEIFS(E3:E32,C3:C32,"X",D3:D32,"M") -> 2001.761905 | F37: =AVERAGEIFS(F3:F32,C3:C32,"X",D3:D32,"M") -> 67.74285714 | G37: =AVERAGEIFS(G3:G32,C3:C32,"X",D3:D32,"M") -> 169.4761905 | H37: =AVERAGEIFS(H3:H32,C3:C32,"X",D3:D32,"M") ->  | I37: =(COUNTIFS(I3:I32,"D",C3:C32,"X",D3:D32,"M")/COUNTIFS(D3:D32,"M",C3:C32,"X")) -> 0.7727272727 | J37: =(COUNTIFS(I3:I32,"S",C3:C32,"X",D3:D32,"M")/COUNTIFS(D3:D32,"M",C3:C32,"X")) -> 0.1818181818 | K37: =(COUNTIFS(K3:K32,"S",C3:C32,"X",D3:D32,"M")/COUNTIFS(D3:D32,"M",C3:C32,"X")) -> 0.5454545455 | L37: =(COUNTIFS(K3:K32,"N",C3:C32,"X",D3:D32,"M")/COUNTIFS(D3:D32,"M",C3:C32,"X")) -> 0.2272727273 | M37: =(COUNTIFS(K3:K32,"I",C3:C32,"X",D3:D32,"M")/COUNTIFS(D3:D32,"M",C3:C32,"X")) -> 0.1818181818 | N37: =AVERAGEIFS(N3:N32,C3:C32,"X",D3:D32,"M") -> -3.8 | O37: =AVERAGEIFS(O3:O32,C3:C32,"X",D3:D32,"M") -> 179.95 | P37: =AVERAGEIFS(P3:P32,C3:C32,"X",D3:D32,"M") -> 506.5294118 | Q37: =AVERAGEIFS(Q3:Q32,C3:C32,"X",D3:D32,"M") ->  | R37: =COUNTIF(R$3:R$32,"=+")/COUNTIFS(R$3:R$32,"<>X",R$3:R$32,"<>") -> 0.3636363636 | S37: =COUNTIF(S$3:S$32,"=+")/COUNTIFS(S$3:S$32,"<>X",S$3:S$32,"<>") -> 0.4545454545
B38: Media femmine | C38: =COUNTIFS(C4:C32,"X",D4:D32,"F")/C35 -> 0.08 | D38: =COUNTIFS(D3:D32,"F",C3:C32,"X")/C39 -> 0.08333333333 | E38: =AVERAGEIFS(E3:E32,C3:C32,"X",D3:D32,"F") -> 2000.5 | F38: =AVERAGEIFS(F3:F32,C3:C32,"X",D3:D32,"F") -> 42.8 | G38: =AVERAGEIFS(G3:G32,C3:C32,"X",D3:D32,"F") -> 161 | H38: =AVERAGEIFS(H3:H32,C3:C32,"X",D3:D32,"F") ->  | I38: =(COUNTIFS(I3:I32,"D",C3:C32,"X",D3:D32,"F")/COUNTIFS(D3:D32,"F",C3:C32,"X")) -> 0.5 | J38: =(COUNTIFS(I3:I32,"S",C3:C32,"X",D3:D32,"F")/COUNTIFS(D3:D32,"F",C3:C32,"X")) -> 0 | K38: =(COUNTIFS(K3:K32,"S",C3:C32,"X",D3:D32,"F")/COUNTIFS(D3:D32,"F",C3:C32,"X")) -> 0 | L38: =(COUNTIFS(K3:K32,"N",C3:C32,"X",D3:D32,"F")/COUNTIFS(D3:D32,"F",C3:C32,"X")) -> 0.5 | M38: =(COUNTIFS(K3:K32,"I",C3:C32,"X",D3:D32,"F")/COUNTIFS(D3:D32,"F",C3:C32,"X")) -> 0 | N38: =AVERAGEIFS(N3:N32,C3:C32,"X",D3:D32,"F") -> 3 | O38: =AVERAGEIFS(O3:O32,C3:C32,"X",D3:D32,"F") -> 155 | P38: =AVERAGEIFS(P3:P32,C3:C32,"X",D3:D32,"F") -> 644 | Q38: =AVERAGEIFS(Q3:Q32,C3:C32,"X",D3:D32,"F") ->  | R38: =COUNTIF(R$3:R$32,"==")/COUNTIFS(R$3:R$32,"<>X",R$3:R$32,"<>") -> 0.2727272727 | S38: =COUNTIF(S$3:S$32,"==")/COUNTIFS(S$3:S$32,"<>X",S$3:S$32,"<>") -> 0.2727272727
B39: Presenti | C39: =COUNTIF(C3:C32,"X") -> 24 | N39: Record | R39: =COUNTIF(R$3:R$32,"-")/COUNTIFS(R$3:R$32,"<>X",R$3:R$32,"<>") -> 0 | S39: =COUNTIF(S$3:S$32,"-")/COUNTIFS(S$3:S$32,"<>X",S$3:S$32,"<>") -> 0
N40: =MAX(N3:N32) -> 11 | O40: =MAX(O3:O32) -> 240 | P40: =MIN(P3:P32) -> 427 | Q40: =MIN(Q3:Q32) -> 0 | R40: =COUNTIF(R$3:R$32,"--")/COUNTIFS(R$3:R$32,"<>X",R$3:R$32,"<>") -> 0 | S40: =COUNTIF(S$3:S$32,"--")/COUNTIFS(S$3:S$32,"<>X",S$3:S$32,"<>") -> 0
N41: =INDEX(B3:B32,MATCH(N40,N3:N32,0),1) -> LAPICIUS OCTAVIAN | O41: =INDEX(B3:B32,MATCH(O40,O3:O32,0),1) -> SIUM MOHAMMED | P41: =INDEX(B3:B32,MATCH(P40,P3:P32,0),1) -> PACIOTTI DANIEL | Q41: =INDEX(B3:B32,MATCH(Q40,Q3:Q32,0),1) -> 

Sheet 1TB
A1: MODELLO | Z1: LEGENDA
A2: N° | B2: Alunno | C2: Presente | D2: Sex | E2: Anno | F2: Peso | G2: Statura | H2: BMI | I2: S/D | K2: S/N/I | N2: Flessibilità | O2: Ldf | P2: Velocità | Q2: Destrezza | R2: Volley | S2: Basket | T2: Note | V2: Sport | W2: Sport | Z2: COLONNA | AA2: FUNZIONE | AC2: SIMBOLO
A3: 1 | B3: ASTROLOGO ANGELO | H3: =IF(C3 = "X",F3/(G3/100)^2,"") ->  | T3: =IF(AND(C3<>"X",B3<>""),"Assente",IF(AND(B3="",C3="X"),"??","")) -> Assente | U3: =IF(AND(C3="X",D3="M"),IF(H3<>"",IF(H3<20.7,"Sottopeso",IF(H3>27.8,"Sovrappeso","Normopeso")),""),IF(AND(C3="X",D3="F"),IF(H3<>"",IF(H3<19.1,"Sottopeso",IF(H3>27.3,"Sovrappeso","Normopeso")),""),"")) ->  | Z3: I-J | AA3: MANCINO O DESTRO | AC3: S/D
A4: 2 | B4: BERTOLOTTI FABIO | H4: =IF(C4 = "X",F4/(G4/100)^2,"") ->  | T4: =IF(AND(C4<>"X",B4<>""),"Assente",IF(AND(B4="",C4="X"),"??","")) -> Assente | U4: =IF(AND(C4="X",D4="M"),IF(H4<>"",IF(H4<20.7,"Sottopeso",IF(H4>27.8,"Sovrappeso","Normopeso")),""),IF(AND(C4="X",D4="F"),IF(H4<>"",IF(H4<19.1,"Sottopeso",IF(H4>27.3,"Sovrappeso","Normopeso")),""),"")) ->  | Z4: K-L-M | AA4: SPORTIVO - NON SPORTIVO - INTERMEDIO | AC4: S/N/I
A5: 3 | B5: CARINO GIAN CARLO | T5: Assente | Z5: O | AA5: SALTO IN LUNGO DA FERMO | AC5: NUMERICO
A6: 4 | B6: CONTI ALESSIO | T6: Assente | Z6: SPORT | AA6: ALUNNO SELEZIONATO PER SQUADRA | AC6: X
A7: 5 | B7: DAOU CARLO | T7: Assente
A8: 6 | B8: DE NAPOLI MATTIA | T8: Assente | Z8: TUTTI I DATI VANNO INSERITI IN FORMATO CAPSLOCK (MAIUSCOLO)
A9: 7 | B9: DI IACOVO UMBERTO | T9: Assente
A10: 8 | B10: DI PORTO DAVIDE | T10: Assente
A11: 9 | B11: DRAGOS DAVIDE | T11: Assente
A12: 10 | B12: GAETA MATTIA | T12: Assente
A13: 11 | B13: IURICH NICOLAS | T13: Assente
A14: 12 | B14: LANZI RICCARDO | T14: Assente
A15: 13 | B15: MAISANO MINO MICHELE | T15: Assente
A16: 14 | B16: MALAFARINA RICCARDO | T16: Assente
A17: 15 | B17: MIRABASSO ALESSIO | T17: Assente
A18: 16 | B18: PAOLA FRANCESCO | T18: Assente
A19: 17 | B19: PERUGINI SIMONE | T19: Assente
A20: 18 | B20: POLITI FRANCESCO | T20: Assente
A21: 19 | B21: RIMA ALBERTO | T21: Assente
A22: 20 | B22: SAURO DANIEL | T22: Assente
A23: 21 | B23: SCANU MIRKO | T23: Assente
A24: 22 | B24: SCARANO GABRIELE | T24: Assente
A25: 23 | B25: TAM DANIELE | T25: Assente
A26: 24 | B26: TERRACINA SAMUEL | T26: Assente
A27: 25 | B27: VASTOLA TOMMASO | T27: Assente
A28: 26
A29: 27
A30: 28
A31: 29
A32: 30
B35: Alunni : | C35: =COUNTIF(B3:B32,"<>"&"") -> 25 | I35: D | J35: S | K35: S | L35: N | M35: I
B36: Media | C36: =COUNTIF(C3:C32,"X")/C35 -> 0 | D36: =(COUNTIFS(D3:D32,"M",C3:C32,"X")+COUNTIFS(D3:D32,"F",C3:C32,"X"))/C39 ->  | E36: =AVERAGE(E3:E32) ->  | F36: =AVERAGEIFS(F3:F32,C3:C32,"X") ->  | G36: =AVERAGEIFS(G3:G32,C3:C32,"X") ->  | H36: =AVERAGEIFS(H3:H32,C3:C32,"X") ->  | I36: =(COUNTIFS(I3:I32,"D",C3:C32,"X")/C39) ->  | J36: =(COUNTIFS(I3:I32,"S",C3:C32,"X")/C39) ->  | K36: =(COUNTIFS(K3:K32,"S",C3:C32,"X")/C39) ->  | L36: =(COUNTIFS(K3:K32,"N",C3:C32,"X")/C39) ->  | M36: =(COUNTIFS(K3:K32,"I",C3:C32,"X")/C39) ->  | N36: =AVERAGEIFS(N3:N32,C3:C32,"X") ->  | O36: =AVERAGEIFS(O3:O32,C3:C32,"X") ->  | P36: =AVERAGEIFS(P3:P32,C3:C32,"X") ->  | Q36: =AVERAGEIFS(Q3:Q32,C3:C32,"X") ->  | R36: =COUNTIF(R$3:R$32,"=++")/COUNTIFS(R$3:R$32,"<>X",R$3:R$32,"<>") ->  | S36: =COUNTIF(S$3:S$32,"=++")/COUNTIFS(S$3:S$32,"<>X",S$3:S$32,"<>") -> 
B37: Media maschi | C37: =COUNTIFS(C3:C32,"X",D3:D32,"M")/C35 -> 0 | D37: =COUNTIFS(D3:D32,"M",C3:C32,"X")/C39 ->  | E37: =AVERAGEIFS(E3:E32,C3:C32,"X",D3:D32,"M") ->  | F37: =AVERAGEIFS(F3:F32,C3:C32,"X",D3:D32,"M") ->  | G37: =AVERAGEIFS(G3:G32,C3:C32,"X",D3:D32,"M") ->  | H37: =AVERAGEIFS(H3:H32,C3:C32,"X",D3:D32,"M") ->  | I37: =(COUNTIFS(I3:I32,"D",C3:C32,"X",D3:D32,"M")/COUNTIFS(D3:D32,"M",C3:C32,"X")) ->  | J37: =(COUNTIFS(I3:I32,"S",C3:C32,"X",D3:D32,"M")/COUNTIFS(D3:D32,"M",C3:C32,"X")) ->  | K37: =(COUNTIFS(K3:K32,"S",C3:C32,"X",D3:D32,"M")/COUNTIFS(D3:D32,"M",C3:C32,"X")) ->  | L37: =(COUNTIFS(K3:K32,"N",C3:C32,"X",D3:D32,"M")/COUNTIFS(D3:D32,"M",C3:C32,"X")) ->  | M37: =(COUNTIFS(K3:K32,"I",C3:C32,"X",D3:D32,"M")/COUNTIFS(D3:D32,"M",C3:C32,"X")) ->  | N37: =AVERAGEIFS(N3:N32,C3:C32,"X",D3:D32,"M") ->  | O37: =AVERAGEIFS(O3:O32,C3:C32,"X",D3:D32,"M") ->  | P37: =AVERAGEIFS(P3:P32,C3:C32,"X",D3:D32,"M") ->  | Q37: =AVERAGEIFS(Q3:Q32,C3:C32,"X",D3:D32,"M") ->  | R37: =COUNTIF(R$3:R$32,"=+")/COUNTIFS(R$3:R$32,"<>X",R$3:R$32,"<>") ->  | S37: =COUNTIF(S$3:S$32,"=+")/COUNTIFS(S$3:S$32,"<>X",S$3:S$32,"<>") -> 
B38: Media femmine | C38: =COUNTIFS(C4:C32,"X",D4:D32,"F")/C35 -> 0 | D38: =COUNTIFS(D3:D32,"F",C3:C32,"X")/C39 ->  | E38: =AVERAGEIFS(E3:E32,C3:C32,"X",D3:D32,"F") ->  | F38: =AVERAGEIFS(F3:F32,C3:C32,"X",D3:D32,"F") ->  | G38: =AVERAGEIFS(G3:G32,C3:C32,"X",D3:D32,"F") ->  | H38: =AVERAGEIFS(H3:H32,C3:C32,"X",D3:D32,"F") ->  | I38: =(COUNTIFS(I3:I32,"D",C3:C32,"X",D3:D32,"F")/COUNTIFS(D3:D32,"F",C3:C32,"X")) ->  | J38: =(COUNTIFS(I3:I32,"S",C3:C32,"X",D3:D32,"F")/COUNTIFS(D3:D32,"F",C3:C32,"X")) ->  | K38: =(COUNTIFS(K3:K32,"S",C3:C32,"X",D3:D32,"F")/COUNTIFS(D3:D32,"F",C3:C32,"X")) ->  | L38: =(COUNTIFS(K3:K32,"N",C3:C32,"X",D3:D32,"F")/COUNTIFS(D3:D32,"F",C3:C32,"X")) ->  | M38: =(COUNTIFS(K3:K32,"I",C3:C32,"X",D3:D32,"F")/COUNTIFS(D3:D32,"F",C3:C32,"X")) ->  | N38: =AVERAGEIFS(N3:N32,C3:C32,"X",D3:D32,"F") ->  | O38: =AVERAGEIFS(O3:O32,C3:C32,"X",D3:D32,"F") ->  | P38: =AVERAGEIFS(P3:P32,C3:C32,"X",D3:D32,"F") ->  | Q38: =AVERAGEIFS(Q3:Q32,C3:C32,"X",D3:D32,"F") ->  | R38: =COUNTIF(R$3:R$32,"==")/COUNTIFS(R$3:R$32,"<>X",R$3:R$32,"<>") ->  | S38: =COUNTIF(S$3:S$32,"==")/COUNTIFS(S$3:S$32,"<>X",S$3:S$32,"<>") -> 
B39: Presenti | C39: =COUNTIF(C3:C32,"X") -> 0 | N39: Record | R39: =COUNTIF(R$3:R$32,"-")/COUNTIFS(R$3:R$32,"<>X",R$3:R$32,"<>") ->  | S39: =COUNTIF(S$3:S$32,"-")/COUNTIFS(S$3:S$32,"<>X",S$3:S$32,"<>") -> 
N40: =MAX(N3:N32) -> 0 | O40: =MAX(O3:O32) -> 0 | P40: =MIN(P3:P32) -> 0 | Q40: =MIN(Q3:Q32) -> 0 | R40: =COUNTIF(R$3:R$32,"--")/COUNTIFS(R$3:R$32,"<>X",R$3:R$32,"<>") ->  | S40: =COUNTIF(S$3:S$32,"--")/COUNTIFS(S$3:S$32,"<>X",S$3:S$32,"<>") -> 
N41: =INDEX(B3:B32,MATCH(N40,N3:N32,0),1) ->  | O41: =INDEX(B3:B32,MATCH(O40,O3:O32,0),1) ->  | P41: =INDEX(B3:B32,MATCH(P40,P3:P32,0),1) ->  | Q41: =INDEX(B3:B32,MATCH(Q40,Q3:Q32,0),1) -> 

Sheet 1TC
A1: CLASSE:
A2: N° | B2: Alunno | C2: Presente | D2: Sex | E2: Anno | F2: Peso | G2: Statura | H2: BMI | I2: S/D | K2: Sportivo-Nsportivo-Intermedio | N2: Flessibilità | O2: Ldf | P2: Velocità | Q2: Destrezza | R2: Volley | S2: Basket | T2: Note
A3: 1 | B3: BUGAY KIM EDWARD DE JESUS | C3: X | D3: M | E3: 2002 | F3: 81.7 | G3: 162 | H3: =IF(C3 = "X",F3/(G3/100)^2,"") -> 31.13092516 | I3: D | K3: S | N3: -7 | O3: 164 | P3: 486 | Q3: 2556 | R3: ++* | S3: + | T3: =IF(AND(C3<>"X",B3<>""),"Assente",IF(AND(B3="",C3="X"),"??","")) ->  | U3: =IF(AND(C3="X",D3="M"),IF(H3<>"",IF(H3<20.7,"Sottopeso",IF(H3>27.8,"Sovrappeso","Normopeso")),""),IF(AND(C3="X",D3="F"),IF(H3<>"",IF(H3<19.1,"Sottopeso",IF(H3>27.3,"Sovrappeso","Normopeso")),""),"")) -> Sovrappeso
A4: 2 | B4: CELLI MARTINA | C4: X | D4: F | E4: 2001 | F4: 61.8 | G4: 161 | H4: =IF(C4 = "X",F4/(G4/100)^2,"") -> 23.84167277 | I4: D | K4: I | N4: 7 | O4: 104 | P4: 511 | Q4: 2269 | R4: - | S4: = | T4: =IF(AND(C4<>"X",B4<>""),"Assente",IF(AND(B4="",C4="X"),"??","")) ->  | U4: =IF(AND(C4="X",D4="M"),IF(H4<>"",IF(H4<20.7,"Sottopeso",IF(H4>27.8,"Sovrappeso","Normopeso")),""),IF(AND(C4="X",D4="F"),IF(H4<>"",IF(H4<19.1,"Sottopeso",IF(H4>27.3,"Sovrappeso","Normopeso")),""),"")) -> Normopeso
A5: 3 | B5: CESE RICCARDO | C5: X | D5: M | E5: 2002 | F5: 71 | G5: 179 | H5: 22.15910864 | I5: D | K5: N | N5: -13 | O5: 164 | P5: 515 | Q5: 2459 | R5: = | S5: + | U5: Normopeso
A6: 4 | B6: COLUCCIA DAMIANO | C6: X | D6: M | E6: 2002 | F6: 72.3 | G6: 175 | H6: 23.60816327 | I6: S | K6: S | N6: 1 | O6: 202 | P6: 450 | Q6: 2118 | R6: ++* | S6: + | U6: Normopeso
A7: 5 | B7: DAMBA AMARA | C7: X | D7: M | E7: 2002 | F7: 51.7 | G7: 165 | H7: 18.98989899 | I7: D | K7: S | N7: -15 | O7: 189 | P7: 515 | Q7: 2510 | R7: = | S7: = | U7: Sottopeso
A8: 6 | B8: DI GAETANO DARIO | C8: X | D8: M | E8: 2003 | F8: 80.6 | G8: 174 | H8: 26.6217466 | I8: D | K8: N | N8: -14 | O8: 183 | P8: 509 | Q8: 2322 | R8: - | S8: = | U8: Normopeso
A9: 7 | B9: DI TONDO LUCA | C9: X | D9: M | E9: 2003 | F9: 60.8 | G9: 174 | H9: 20.08191307 | I9: D | K9: S | N9: 0 | O9: 182 | P9: 465 | Q9: 2331 | R9: ++ | S9: + | U9: Sottopeso
A10: 8 | B10: DIVIZIA CLAUDIO | C10: X | D10: M | E10: 2003 | F10: 49.4 | G10: 163 | H10: 18.59309722 | I10: D | K10: I | N10: 9 | O10: 177 | P10: 488 | Q10: 2669 | R10: ++ | S10: + | U10: Sottopeso
A11: 9 | B11: FERRANTE ROBERTO | C11: X | D11: M | E11: 2002 | F11: 58.7 | G11: 169 | H11: 20.55250166 | I11: D | K11: I | N11: -3 | O11: 181 | P11: 496 | Q11: 2460 | R11: + | S11: = | U11: Sottopeso
A12: 10 | B12: HOFFMANN FRANCESCO | C12: X | D12: M | E12: 2001 | F12: 65.3 | G12: 171 | H12: 22.3316576 | I12: D | K12: S | N12: -7 | O12: 195 | P12: 490 | Q12: 2355 | R12: ++ | S12: + | U12: Normopeso
A13: 11 | B13: IANCU LUIGI GABRIEL | C13: X | D13: M | E13: 2002 | F13: 35 | G13: 171 | H13: 11.96949489 | I13: S | K13: S | N13: 1 | O13: 175 | P13: 506 | Q13: 2450 | R13: + | S13: + | U13: Sottopeso
A14: 12 | B14: INCELLI CRISTIAN | E14: 2000 | T14: Assente
A15: 13 | B15: LAQUINDANUM BERNARD JR JUAN | C15: X | D15: M | E15: 2002 | F15: 41 | G15: 158 | H15: 16.42365006 | I15: D | K15: I | N15: 6 | O15: 217 | P15: 495 | Q15: 2490 | R15: + | S15: + | U15: Sottopeso
A16: 14 | B16: LATTARI ANDREA | C16: X | D16: M | E16: 2002 | F16: 47.3 | G16: 166 | H16: 17.16504573 | I16: D | K16: S | N16: -15 | O16: 220 | P16: 470 | Q16: 2388 | R16: + | S16: + | U16: Sottopeso
A17: 15 | B17: LUPI FEDERICA | C17: X | D17: F | E17: 2002 | F17: 67.6 | G17: 160 | H17: 26.40625 | I17: D | K17: N | N17: -12 | O17: 157 | P17: 500 | Q17: 2504 | R17: = | S17: + | U17: Normopeso
A18: 16 | B18: MARCHETTI LUKAS OLLVER | C18: X | D18: M | E18: 2001 | F18: 58.4 | G18: 172 | H18: 19.74040022 | I18: D | K18: N | N18: -13 | O18: 174 | P18: 556 | Q18: 2496 | R18: ++ | S18: = | U18: Sottopeso
A19: 17 | B19: MARUCCI ANDREA | C19: X | D19: M | E19: 2002 | F19: 62.1 | G19: 178 | H19: 19.59979801 | I19: D | K19: S | N19: 6 | O19: 217 | P19: 478 | Q19: 2378 | R19: + | S19: + | U19: Sottopeso
A20: 18 | B20: NUNZI YURI | C20: X | D20: M | E20: 2002 | F20: 82 | G20: 183 | H20: 24.48565201 | I20: D | K20: I | N20: 3 | O20: 211 | P20: 490 | Q20: 2501 | R20: ++ | S20: + | U20: Normopeso
A21: 19 | B21: PESCETELLI MANUEL | C21: X | D21: M | E21: 2002 | F21: 51.4 | G21: 170 | H21: 17.78546713 | I21: D | K21: S | N21: 9 | O21: 212 | P21: 465 | Q21: 2465 | R21: + | S21: = | U21: Sottopeso
A22: 20 | B22: PRASAD NAKUL | C22: X | D22: M | E22: 1999 | F22: 58.4 | G22: 166 | H22: 21.19320656 | I22: D | K22: N | N22: 3 | O22: 176 | P22: 510 | Q22: 2513 | R22: - | S22: + | U22: Normopeso
A23: 21 | B23: PUTELLI GUGLIELMO | E23: 2001 | T23: Assente
A24: 22 | B24: SORDILLI EDOARDO | C24: X | D24: M | E24: 2002 | F24: 62.7 | G24: 162 | H24: 23.89117513 | I24: S | K24: S | N24: -1 | O24: 201 | P24: 484 | Q24: 2405 | R24: + | S24: + | U24: Normopeso
A25: 23 | B25: VICANÒ GABRIEL | C25: X | D25: M | E25: 2001 | F25: 50 | G25: 164 | H25: 18.59012493 | I25: D | K25: I | N25: -5 | O25: 194 | P25: 460 | Q25: 2390 | R25: ++ | S25: + | U25: Sottopeso
A26: 24 | B26: ABATE MARTINA | C26: X | D26: F | E26: 2002 | F26: 52.8 | G26: 159 | H26: 20.88524979 | I26: S | K26: I | N26: -14 | O26: 145 | P26: 537 | Q26: 2548 | R26: = | S26: = | U26: Normopeso
A27: 25
A28: 26
A29: 27
A30: 28
A31: 29
A32: 30
B35: Alunni : | C35: =COUNTIF(B3:B32,"<>"&"") -> 24 | I35: Dx | J35: Sx | K35: S | L35: NS | M35: I
B36: Media | C36: =COUNTIF(C3:C32,"X")/C35 -> 0.9166666667 | D36: =(COUNTIFS(D3:D32,"M",C3:C32,"X")+COUNTIFS(D3:D32,"F",C3:C32,"X"))/C39 -> 1 | E36: =AVERAGE(E3:E32) -> 2001.708333 | F36: =AVERAGEIFS(F3:F32,C3:C32,"X") -> 60.09090909 | G36: =AVERAGEIFS(G3:G32,C3:C32,"X") -> 168.2727273 | H36: =AVERAGEIFS(H3:H32,C3:C32,"X") -> 21.18391816 | I36: =(COUNTIFS(I3:I32,"D",C3:C32,"X")/C39) -> 0.8181818182 | J36: =(COUNTIFS(I3:I32,"S",C3:C32,"X")/C39) -> 0.1818181818 | K36: =(COUNTIFS(K3:K32,"S",C3:C32,"X")/C39) -> 0.4545454545 | L36: =(COUNTIFS(K3:K32,"N",C3:C32,"X")/C39) -> 0.2272727273 | M36: =(COUNTIFS(K3:K32,"I",C3:C32,"X")/C39) -> 0.3181818182 | N36: =AVERAGEIFS(N3:N32,C3:C32,"X") -> -3.363636364 | O36: =AVERAGEIFS(O3:O32,C3:C32,"X") -> 183.6363636 | P36: =AVERAGEIFS(P3:P32,C3:C32,"X") -> 494.3636364 | Q36: =AVERAGEIFS(Q3:Q32,C3:C32,"X") -> 2435.318182 | R36: =COUNTIF(R$3:R$32,"=++")/COUNTIFS(R$3:R$32,"<>X",R$3:R$32,"<>") -> 0.2727272727 | S36: =COUNTIF(S$3:S$32,"=++")/COUNTIFS(S$3:S$32,"<>X",S$3:S$32,"<>") -> 0
B37: Media maschi | C37: =COUNTIFS(C3:C32,"X",D3:D32,"M")/C35 -> 0.7916666667 | D37: =COUNTIFS(D3:D32,"M",C3:C32,"X")/C39 -> 0.8636363636 | E37: =AVERAGEIFS(E3:E32,C3:C32,"X",D3:D32,"M") -> 2001.842105 | F37: =AVERAGEIFS(F3:F32,C3:C32,"X",D3:D32,"M") -> 59.98947368 | G37: =AVERAGEIFS(G3:G32,C3:C32,"X",D3:D32,"M") -> 169.5789474 | H37: =AVERAGEIFS(H3:H32,C3:C32,"X",D3:D32,"M") -> 20.78489615 | I37: =(COUNTIFS(I3:I32,"D",C3:C32,"X",D3:D32,"M")/COUNTIFS(D3:D32,"M",C3:C32,"X")) -> 0.8421052632 | J37: =(COUNTIFS(I3:I32,"S",C3:C32,"X",D3:D32,"M")/COUNTIFS(D3:D32,"M",C3:C32,"X")) -> 0.1578947368 | K37: =(COUNTIFS(K3:K32,"S",C3:C32,"X",D3:D32,"M")/COUNTIFS(D3:D32,"M",C3:C32,"X")) -> 0.5263157895 | L37: =(COUNTIFS(K3:K32,"N",C3:C32,"X",D3:D32,"M")/COUNTIFS(D3:D32,"M",C3:C32,"X")) -> 0.2105263158 | M37: =(COUNTIFS(K3:K32,"I",C3:C32,"X",D3:D32,"M")/COUNTIFS(D3:D32,"M",C3:C32,"X")) -> 0.2631578947 | N37: =AVERAGEIFS(N3:N32,C3:C32,"X",D3:D32,"M") -> -2.894736842 | O37: =AVERAGEIFS(O3:O32,C3:C32,"X",D3:D32,"M") -> 191.2631579 | P37: =AVERAGEIFS(P3:P32,C3:C32,"X",D3:D32,"M") -> 490.9473684 | Q37: =AVERAGEIFS(Q3:Q32,C3:C32,"X",D3:D32,"M") -> 2434.526316 | R37: =COUNTIF(R$3:R$32,"=+")/COUNTIFS(R$3:R$32,"<>X",R$3:R$32,"<>") -> 0.3181818182 | S37: =COUNTIF(S$3:S$32,"=+")/COUNTIFS(S$3:S$32,"<>X",S$3:S$32,"<>") -> 0.6818181818
B38: Media femmine | C38: =COUNTIFS(C4:C32,"X",D4:D32,"F")/C35 -> 0.125 | D38: =COUNTIFS(D3:D32,"F",C3:C32,"X")/C39 -> 0.1363636364 | E38: =AVERAGEIFS(E3:E32,C3:C32,"X",D3:D32,"F") -> 2001.666667 | F38: =AVERAGEIFS(F3:F32,C3:C32,"X",D3:D32,"F") -> 60.73333333 | G38: =AVERAGEIFS(G3:G32,C3:C32,"X",D3:D32,"F") -> 160 | H38: =AVERAGEIFS(H3:H32,C3:C32,"X",D3:D32,"F") -> 23.71105752 | I38: =(COUNTIFS(I3:I32,"D",C3:C32,"X",D3:D32,"F")/COUNTIFS(D3:D32,"F",C3:C32,"X")) -> 0.6666666667 | J38: =(COUNTIFS(I3:I32,"S",C3:C32,"X",D3:D32,"F")/COUNTIFS(D3:D32,"F",C3:C32,"X")) -> 0.3333333333 | K38: =(COUNTIFS(K3:K32,"S",C3:C32,"X",D3:D32,"F")/COUNTIFS(D3:D32,"F",C3:C32,"X")) -> 0 | L38: =(COUNTIFS(K3:K32,"N",C3:C32,"X",D3:D32,"F")/COUNTIFS(D3:D32,"F",C3:C32,"X")) -> 0.3333333333 | M38: =(COUNTIFS(K3:K32,"N",C3:C32,"X",D3:D32,"F")/COUNTIFS(D3:D32,"F",C3:C32,"X")) -> 0.3333333333 | N38: =AVERAGEIFS(N3:N32,C3:C32,"X",D3:D32,"F") -> -6.333333333 | O38: =AVERAGEIFS(O3:O32,C3:C32,"X",D3:D32,"F") -> 135.3333333 | P38: =AVERAGEIFS(P3:P32,C3:C32,"X",D3:D32,"F") -> 516 | Q38: =AVERAGEIFS(Q3:Q32,C3:C32,"X",D3:D32,"F") -> 2440.333333 | R38: =COUNTIF(R$3:R$32,"==")/COUNTIFS(R$3:R$32,"<>X",R$3:R$32,"<>") -> 0.1818181818 | S38: =COUNTIF(S$3:S$32,"==")/COUNTIFS(S$3:S$32,"<>X",S$3:S$32,"<>") -> 0.3181818182
B39: Presenti | C39: =COUNTIF(C3:C32,"X") -> 22 | N39: Record | R39: =COUNTIF(R$3:R$32,"-")/COUNTIFS(R$3:R$32,"<>X",R$3:R$32,"<>") -> 0.1363636364 | S39: =COUNTIF(S$3:S$32,"-")/COUNTIFS(S$3:S$32,"<>X",S$3:S$32,"<>") -> 0
N40: =MAX(N3:N32) -> 9 | O40: =MAX(O3:O32) -> 220 | P40: =MIN(P3:P32) -> 450 | Q40: =MIN(Q3:Q32) -> 2118 | R40: =COUNTIF(R$3:R$32,"--")/COUNTIFS(R$3:R$32,"<>X",R$3:R$32,"<>") -> 0 | S40: =COUNTIF(S$3:S$32,"--")/COUNTIFS(S$3:S$32,"<>X",S$3:S$32,"<>") -> 0
N41: =INDEX(B3:B32,MATCH(N40,N3:N32,0),1) -> DIVIZIA CLAUDIO | O41: =INDEX(B3:B32,MATCH(O40,O3:O32,0),1) -> LATTARI ANDREA | P41: =INDEX(B3:B32,MATCH(P40,P3:P32,0),1) -> COLUCCIA DAMIANO | Q41: =INDEX(B3:B32,MATCH(Q40,Q3:Q32,0),1) -> COLUCCIA DAMIANO

Sheet 1TD
A1: MODELLO | Z1: LEGENDA
A2: N° | B2: Alunno | C2: Presente | D2: Sex | E2: Anno | F2: Peso | G2: Statura | H2: BMI | I2: S/D | K2: S/N/I | N2: Flessibilità | O2: Ldf | P2: Velocità | Q2: Destrezza | R2: Volley | S2: Basket | T2: Note | V2: Sport | W2: Sport | Z2: COLONNA | AA2: FUNZIONE | AC2: SIMBOLO
A3: 1 | B3: ALY ZYNAB MOHAM | C3: X | D3: M | E3: 2001 | F3: 54 | G3: 167 | H3: =IF(C3 = "X",F3/(G3/100)^2,"") -> 19.36247266 | I3: D | K3: N | N3: -12 | O3: 124 | P3: 625 | Q3: 2856 | R3: + | S3: = | T3: =IF(AND(C3<>"X",B3<>""),"Assente",IF(AND(B3="",C3="X"),"??","")) ->  | U3: =IF(AND(C3="X",D3="M"),IF(H3<>"",IF(H3<20.7,"Sottopeso",IF(H3>27.8,"Sovrappeso","Normopeso")),""),IF(AND(C3="X",D3="F"),IF(H3<>"",IF(H3<19.1,"Sottopeso",IF(H3>27.3,"Sovrappeso","Normopeso")),""),"")) -> Sottopeso | Z3: I-J | AA3: MANCINO O DESTRO | AC3: S/D
A4: 2 | B4: CASTILLO MARK LOUIE | C4: X | D4: M | E4: 2001 | F4: 75 | G4: 169 | H4: =IF(C4 = "X",F4/(G4/100)^2,"") -> 26.25958475 | I4: D | K4: N | N4: -1 | O4: 194 | P4: 496 | Q4: 2912 | R4: + | S4: + | T4: =IF(AND(C4<>"X",B4<>""),"Assente",IF(AND(B4="",C4="X"),"??","")) ->  | U4: =IF(AND(C4="X",D4="M"),IF(H4<>"",IF(H4<20.7,"Sottopeso",IF(H4>27.8,"Sovrappeso","Normopeso")),""),IF(AND(C4="X",D4="F"),IF(H4<>"",IF(H4<19.1,"Sottopeso",IF(H4>27.3,"Sovrappeso","Normopeso")),""),"")) -> Normopeso | Z4: K-L-M | AA4: SPORTIVO - NON SPORTIVO - INTERMEDIO | AC4: S/N/I
A5: 3 | B5: COPPI MIRKO | C5: X | D5: M | E5: 2001 | F5: 72.4 | G5: 174 | H5: 23.91333069 | I5: D | K5: I | N5: -15 | O5: 224 | P5: 469 | Q5: 2313 | R5: + | S5: + | U5: Normopeso | Z5: O | AA5: SALTO IN LUNGO DA FERMO | AC5: NUMERICO
A6: 4 | B6: DE CAPOA LUCA | C6: X | D6: M | E6: 2002 | F6: 43.8 | G6: 169 | H6: 15.33559749 | I6: S | K6: I | N6: -27 | O6: 174 | P6: 547 | Q6: 2725 | R6: + | S6: = | U6: Sottopeso | Z6: SPORT | AA6: ALUNNO SELEZIONATO PER SQUADRA | AC6: X
A7: 5 | B7: DI CONSIGLIO SAMUEL | C7: X | D7: M | E7: 2002 | F7: 59.6 | G7: 163 | H7: 22.43215778 | I7: D | K7: N | N7: -18 | O7: 130 | P7: 571 | Q7: 3728 | R7: = | S7: = | U7: Normopeso
A8: 6 | B8: FALCIANI FEDERICO | C8: X | D8: M | E8: 2003 | F8: 45 | G8: 162 | H8: 17.14677641 | I8: D | K8: S | N8: -13 | O8: 177 | P8: 522 | Q8: 2406 | R8: = | S8: + | U8: Sottopeso | Z8: TUTTI I DATI VANNO INSERITI IN FORMATO CAPSLOCK (MAIUSCOLO)
A9: 7 | B9: GADALLA YOUSSEF | C9: X | D9: M | E9: 2002 | F9: 69.5 | G9: 174 | H9: 22.95547628 | I9: S | K9: N | N9: -13 | O9: 187 | P9: 544 | Q9: 2425 | R9: = | S9: = | U9: Normopeso
A10: 8 | B10: GENNA MATTEO | C10: X | D10: M | E10: 2002 | F10: 43.5 | G10: 156 | H10: 17.87475345 | I10: D | K10: N | N10: -8 | O10: 210 | P10: 522 | Q10: 2316 | R10: ++ | S10: + | U10: Sottopeso
A11: 9 | B11: GISTI ALESSIO | C11: X | D11: M | E11: 2000 | F11: 72.4 | G11: 166 | H11: 26.27376978 | I11: D | K11: I | N11: 0 | O11: 188 | P11: 471 | Q11: 3016 | R11: + | S11: + | U11: Normopeso
A12: 10 | B12: GRANDE CHRISTIAN DYLAN | C12: X | D12: M | E12: 2001 | F12: 69.4 | G12: 172 | H12: 23.45862628 | I12: D | K12: I | N12: -1 | O12: 195 | P12: 506 | Q12: 2534 | R12: + | S12: + | U12: Normopeso
A13: 11 | B13: ILAGAN ZAKI HUDSON | C13: X | D13: M | E13: 2003 | F13: 76.6 | G13: 166 | H13: 27.79793874 | I13: D | K13: N | N13: 1 | O13: 203 | P13: 453 | Q13: 2238 | R13: ++ | S13: + | U13: Normopeso
A14: 12 | B14: MEZZINI LORENZO | C14: X | D14: M | E14: 2001 | F14: 42.1 | G14: 164 | H14: 15.65288519 | I14: S | K14: S | N14: -9 | O14: 180 | P14: 494 | Q14: 2484 | R14: = | S14: + | U14: Sottopeso
A15: 13 | B15: PISTOLA ANDREA | C15: X | D15: M | E15: 2001 | F15: 54.6 | G15: 171 | H15: 18.67241202 | I15: D | K15: S | N15: 13 | O15: 235 | P15: 481 | Q15: 2060 | R15: + | S15: ++ | U15: Sottopeso
A16: 14 | B16: RATEANU REBECCA | C16: X | D16: F | E16: 2002 | F16: 57.3 | G16: 169 | H16: 20.06232275 | I16: D | K16: S | N16: 12 | O16: 184 | P16: 469 | Q16: 2378 | R16: ++ | S16: ++ | U16: Normopeso
A17: 15 | B17: RIOTTO ROSARIO | D17: M | E17: 2002 | T17: Assente
A18: 16 | B18: ROSSI GIACOMO | C18: X | D18: M | E18: 2002 | F18: 61.2 | G18: 169 | H18: 21.42782115 | I18: D | K18: S | N18: 0 | O18: 180 | P18: 557 | Q18: 2810 | R18: ++ | S18: ++ | U18: Normopeso
A19: 17 | B19: SANTINI ALESSIO | C19: X | D19: M | E19: 2002 | F19: 53.9 | G19: 170 | H19: 18.65051903 | I19: D | K19: S | N19: 0 | O19: 212 | P19: 497 | Q19: 2562 | R19: = | S19: + | U19: Sottopeso
A20: 18 | B20: TAREK HUSSEIN RAHMA | D20: M | E20: 2002 | T20: Assente
A21: 19 | B21: TUCCI ROBERTO | C21: X | D21: M | E21: 2002 | F21: 52.6 | G21: 165 | H21: 19.3204775 | I21: D | K21: S | N21: 16 | O21: 209 | P21: 469 | Q21: 2166 | R21: + | S21: + | U21: Sottopeso
A22: 20 | B22: URETA MUCHA WALTER | C22: X | D22: M | E22: 2001 | F22: 53.2 | G22: 163 | H22: 20.02333547 | I22: D | K22: N | N22: 0 | O22: 204 | P22: 509 | Q22: 2422 | R22: = | S22: + | U22: Sottopeso
A23: 21 | B23: VENTURA FABRIZIO | C23: X | D23: M | E23: 2002 | F23: 54.1 | G23: 168 | H23: 19.1680839 | I23: D | K23: S | N23: 6 | O23: 232 | P23: 556 | Q23: 2225 | R23: + | S23: = | U23: Sottopeso
A24: 22 | B24: VETTURINI MIRKO | C24: X | D24: M | E24: 2001 | F24: 63.5 | G24: 180 | H24: 19.59876543 | I24: D | K24: S | N24: 9 | O24: 193 | P24: 485 | Q24: 2235 | R24: ++ | S24: + | U24: Sottopeso
A25: 23 | B25: VINCENTINI ORGNANI MATTEO | D25: M | E25: 2002 | T25: Assente
A26: 24
A27: 25
A28: 26
A29: 27
A30: 28
A31: 29
A32: 30
B35: Alunni : | C35: =COUNTIF(B3:B32,"<>"&"") -> 23 | I35: D | J35: S | K35: S | L35: N | M35: I
B36: Media | C36: =COUNTIF(C3:C32,"X")/C35 -> 0.8695652174 | D36: =(COUNTIFS(D3:D32,"M",C3:C32,"X")+COUNTIFS(D3:D32,"F",C3:C32,"X"))/C39 -> 1 | E36: =AVERAGE(E3:E32) -> 2001.652174 | F36: =AVERAGEIFS(F3:F32,C3:C32,"X") -> 58.685 | G36: =AVERAGEIFS(G3:G32,C3:C32,"X") -> 167.85 | H36: =AVERAGEIFS(H3:H32,C3:C32,"X") -> 20.76935534 | I36: =(COUNTIFS(I3:I32,"D",C3:C32,"X")/C39) -> 0.85 | J36: =(COUNTIFS(I3:I32,"S",C3:C32,"X")/C39) -> 0.15 | K36: =(COUNTIFS(K3:K32,"S",C3:C32,"X")/C39) -> 0.45 | L36: =(COUNTIFS(K3:K32,"N",C3:C32,"X")/C39) -> 0.35 | M36: =(COUNTIFS(K3:K32,"I",C3:C32,"X")/C39) -> 0.2 | N36: =AVERAGEIFS(N3:N32,C3:C32,"X") -> -3 | O36: =AVERAGEIFS(O3:O32,C3:C32,"X") -> 191.75 | P36: =AVERAGEIFS(P3:P32,C3:C32,"X") -> 512.15 | Q36: =AVERAGEIFS(Q3:Q32,C3:C32,"X") -> 2540.55 | R36: =COUNTIF(R$3:R$32,"=++")/COUNTIFS(R$3:R$32,"<>X",R$3:R$32,"<>") -> 0.25 | S36: =COUNTIF(S$3:S$32,"=++")/COUNTIFS(S$3:S$32,"<>X",S$3:S$32,"<>") -> 0.15
B37: Media maschi | C37: =COUNTIFS(C3:C32,"X",D3:D32,"M")/C35 -> 0.8260869565 | D37: =COUNTIFS(D3:D32,"M",C3:C32,"X")/C39 -> 0.95 | E37: =AVERAGEIFS(E3:E32,C3:C32,"X",D3:D32,"M") -> 2001.578947 | F37: =AVERAGEIFS(F3:F32,C3:C32,"X",D3:D32,"M") -> 58.75789474 | G37: =AVERAGEIFS(G3:G32,C3:C32,"X",D3:D32,"M") -> 167.7894737 | H37: =AVERAGEIFS(H3:H32,C3:C32,"X",D3:D32,"M") -> 20.80656758 | I37: =(COUNTIFS(I3:I32,"D",C3:C32,"X",D3:D32,"M")/COUNTIFS(D3:D32,"M",C3:C32,"X")) -> 0.8421052632 | J37: =(COUNTIFS(I3:I32,"S",C3:C32,"X",D3:D32,"M")/COUNTIFS(D3:D32,"M",C3:C32,"X")) -> 0.1578947368 | K37: =(COUNTIFS(K3:K32,"S",C3:C32,"X",D3:D32,"M")/COUNTIFS(D3:D32,"M",C3:C32,"X")) -> 0.4210526316 | L37: =(COUNTIFS(K3:K32,"N",C3:C32,"X",D3:D32,"M")/COUNTIFS(D3:D32,"M",C3:C32,"X")) -> 0.3684210526 | M37: =(COUNTIFS(K3:K32,"I",C3:C32,"X",D3:D32,"M")/COUNTIFS(D3:D32,"M",C3:C32,"X")) -> 0.2105263158 | N37: =AVERAGEIFS(N3:N32,C3:C32,"X",D3:D32,"M") -> -3.789473684 | O37: =AVERAGEIFS(O3:O32,C3:C32,"X",D3:D32,"M") -> 192.1578947 | P37: =AVERAGEIFS(P3:P32,C3:C32,"X",D3:D32,"M") -> 514.4210526 | Q37: =AVERAGEIFS(Q3:Q32,C3:C32,"X",D3:D32,"M") -> 2549.105263 | R37: =COUNTIF(R$3:R$32,"=+")/COUNTIFS(R$3:R$32,"<>X",R$3:R$32,"<>") -> 0.45 | S37: =COUNTIF(S$3:S$32,"=+")/COUNTIFS(S$3:S$32,"<>X",S$3:S$32,"<>") -> 0.6
B38: Media femmine | C38: =COUNTIFS(C4:C32,"X",D4:D32,"F")/C35 -> 0.04347826087 | D38: =COUNTIFS(D3:D32,"F",C3:C32,"X")/C39 -> 0.05 | E38: =AVERAGEIFS(E3:E32,C3:C32,"X",D3:D32,"F") -> 2002 | F38: =AVERAGEIFS(F3:F32,C3:C32,"X",D3:D32,"F") -> 57.3 | G38: =AVERAGEIFS(G3:G32,C3:C32,"X",D3:D32,"F") -> 169 | H38: =AVERAGEIFS(H3:H32,C3:C32,"X",D3:D32,"F") -> 20.06232275 | I38: =(COUNTIFS(I3:I32,"D",C3:C32,"X",D3:D32,"F")/COUNTIFS(D3:D32,"F",C3:C32,"X")) -> 1 | J38: =(COUNTIFS(I3:I32,"S",C3:C32,"X",D3:D32,"F")/COUNTIFS(D3:D32,"F",C3:C32,"X")) -> 0 | K38: =(COUNTIFS(K3:K32,"S",C3:C32,"X",D3:D32,"F")/COUNTIFS(D3:D32,"F",C3:C32,"X")) -> 1 | L38: =(COUNTIFS(K3:K32,"N",C3:C32,"X",D3:D32,"F")/COUNTIFS(D3:D32,"F",C3:C32,"X")) -> 0 | M38: =(COUNTIFS(K3:K32,"I",C3:C32,"X",D3:D32,"F")/COUNTIFS(D3:D32,"F",C3:C32,"X")) -> 0 | N38: =AVERAGEIFS(N3:N32,C3:C32,"X",D3:D32,"F") -> 12 | O38: =AVERAGEIFS(O3:O32,C3:C32,"X",D3:D32,"F") -> 184 | P38: =AVERAGEIFS(P3:P32,C3:C32,"X",D3:D32,"F") -> 469 | Q38: =AVERAGEIFS(Q3:Q32,C3:C32,"X",D3:D32,"F") -> 2378 | R38: =COUNTIF(R$3:R$32,"==")/COUNTIFS(R$3:R$32,"<>X",R$3:R$32,"<>") -> 0.3 | S38: =COUNTIF(S$3:S$32,"==")/COUNTIFS(S$3:S$32,"<>X",S$3:S$32,"<>") -> 0.25
B39: Presenti | C39: =COUNTIF(C3:C32,"X") -> 20 | N39: Record | R39: =COUNTIF(R$3:R$32,"-")/COUNTIFS(R$3:R$32,"<>X",R$3:R$32,"<>") -> 0 | S39: =COUNTIF(S$3:S$32,"-")/COUNTIFS(S$3:S$32,"<>X",S$3:S$32,"<>") -> 0
N40: =MAX(N3:N32) -> 16 | O40: =MAX(O3:O32) -> 235 | P40: =MIN(P3:P32) -> 453 | Q40: =MIN(Q3:Q32) -> 2060 | R40: =COUNTIF(R$3:R$32,"--")/COUNTIFS(R$3:R$32,"<>X",R$3:R$32,"<>") -> 0 | S40: =COUNTIF(S$3:S$32,"--")/COUNTIFS(S$3:S$32,"<>X",S$3:S$32,"<>") -> 0
N41: =INDEX(B3:B32,MATCH(N40,N3:N32,0),1) -> TUCCI ROBERTO | O41: =INDEX(B3:B32,MATCH(O40,O3:O32,0),1) -> PISTOLA ANDREA | P41: =INDEX(B3:B32,MATCH(P40,P3:P32,0),1) -> ILAGAN ZAKI HUDSON | Q41: =INDEX(B3:B32,MATCH(Q40,Q3:Q32,0),1) -> PISTOLA ANDREA

Sheet 1TE
A2: N° | B2: Alunno | C2: Presente | D2: Sex | E2: Anno | F2: Peso | G2: Statura | H2: BMI | I2: S/D | K2: Sportivo-Nsportivo-Intermedio | N2: Flessibilità | O2: Ldf | P2: Velocità | Q2: Destrezza | R2: Volley | S2: Basket | T2: Note
A3: 1 | B3: APPOLLONI RICCARDO | C3: X | D3: M | E3: 2003 | F3: 56 | G3: 168 | H3: =IF(C3 = "X",F3/(G3/100)^2,"") -> 19.84126984 | I3: D | K3: S | N3: -24 | O3: 158 | P3: 534 | Q3: 2615 | R3: = | T3: =IF(AND(C3<>"X",B3<>""),"Assente",IF(AND(B3="",C3="X"),"??","")) ->  | U3: =IF(AND(C3="X",D3="M"),IF(H3<>"",IF(H3<20.7,"Sottopeso",IF(H3>27.8,"Sovrappeso","Normopeso")),""),IF(AND(C3="X",D3="F"),IF(H3<>"",IF(H3<19.1,"Sottopeso",IF(H3>27.3,"Sovrappeso","Normopeso")),""),"")) -> Sottopeso
A4: 2 | B4: BONTEMPO FILIPPO | C4: X | D4: M | E4: 2002 | F4: 44.4 | G4: 161 | H4: =IF(C4 = "X",F4/(G4/100)^2,"") -> 17.12896879 | I4: D | K4: I | N4: -14 | O4: 203 | P4: 491 | Q4: 2696 | R4: + | T4: =IF(AND(C4<>"X",B4<>""),"Assente",IF(AND(B4="",C4="X"),"??","")) ->  | U4: =IF(AND(C4="X",D4="M"),IF(H4<>"",IF(H4<20.7,"Sottopeso",IF(H4>27.8,"Sovrappeso","Normopeso")),""),IF(AND(C4="X",D4="F"),IF(H4<>"",IF(H4<19.1,"Sottopeso",IF(H4>27.3,"Sovrappeso","Normopeso")),""),"")) -> Sottopeso
A5: 3 | B5: BRANCIAMORE RICCARDO | C5: X | D5: M | E5: 2002 | F5: 62.8 | G5: 170 | H5: 21.73010381 | I5: D | K5: S | N5: 8 | O5: 191 | P5: 468 | Q5: 2225 | R5: ++* | U5: Normopeso
A6: 4 | B6: BRUTTI RICCARDO | C6: X | D6: M | E6: 2002 | F6: 69 | G6: 164 | H6: 25.6543724 | I6: D | K6: S | N6: -19 | O6: 181 | P6: 553 | Q6: 2753 | R6: ++ | U6: Normopeso
A7: 5 | B7: CALVA ALESSANDRO | C7: X | D7: M | E7: 2002 | F7: 57 | G7: 176 | H7: 18.40134298 | I7: D | K7: I | N7: 0 | O7: 190 | P7: 482 | Q7: 2304 | R7: ++ | U7: Sottopeso
A8: 6 | B8: CAPRA PIERFRANCESCO | C8: X | D8: M | E8: 2002 | F8: 54.6 | G8: 172 | H8: 18.45592212 | I8: D | K8: S | N8: -11 | O8: 210 | P8: 469 | Q8: 2378 | R8: + | U8: Sottopeso
A9: 7 | B9: CECATI ALEX | C9: X | D9: M | E9: 2002 | F9: 81.6 | G9: 164 | H9: 30.33908388 | I9: D | K9: I | N9: -4 | O9: 180 | P9: 513 | Q9: 2537 | R9: + | U9: Sovrappeso
A10: 8 | B10: DE ZULIANI MIRKO | C10: X | D10: M | E10: 2002 | F10: 101 | G10: 176 | H10: 32.60588843 | I10: D | K10: S | N10: -2 | O10: 155 | P10: 597 | Q10: 3156 | R10: + | U10: Sovrappeso
A11: 9 | B11: GIZZI ANDREA | C11: X | D11: M | E11: 2002 | F11: 54 | G11: 165 | H11: 19.83471074 | I11: D | K11: I | N11: -3 | O11: 204 | P11: 481 | Q11: 2503 | R11: ++ | U11: Sottopeso
A12: 10 | B12: GUARNONI LUCA | D12: M | E12: 2001 | T12: Assente
A13: 11 | B13: LECCISOTTO STEFANO | D13: M | E13: 2002 | T13: Assente
A14: 12 | B14: MAGTIBAY JOHN KERBY VILLANUEVA | D14: M | E14: 2001 | T14: Assente
A15: 13 | B15: MICHETTI LORENZO | C15: X | D15: M | E15: 2003 | F15: 52 | G15: 166 | H15: 18.87066338 | I15: D | K15: I | N15: -4 | O15: 200 | P15: 525 | Q15: 2407 | R15: + | U15: Sottopeso
A16: 14 | B16: MOSCA FEDERICO | D16: M | E16: 2002 | T16: Assente
A17: 15 | B17: PARISI ANDREA | C17: X | D17: M | E17: 2002 | F17: 75.2 | G17: 173 | H17: 25.12613185 | I17: D | K17: S | N17: -17 | O17: 204 | P17: 468 | Q17: 2294 | R17: ++ | U17: Normopeso
A18: 16 | B18: PARISI CHIARA | C18: X | D18: F | E18: 2003 | F18: 53 | G18: 158 | H18: 21.23057202 | I18: D | K18: I | N18: 4 | O18: 161 | P18: 582 | Q18: 2963 | R18: = | U18: Normopeso
A19: 17 | B19: SALOMONE MARCO | C19: X | D19: M | E19: 2001 | F19: 51.6 | G19: 165 | H19: 18.95316804 | I19: D | K19: S | N19: 3 | O19: 190 | P19: 484 | Q19: 2322 | R19: + | U19: Sottopeso
A20: 18 | B20: SPALLETTI MATTEO | C20: X | D20: M | E20: 2002 | F20: 41.4 | G20: 156 | H20: 17.01183432 | I20: D | K20: I | N20: -15 | O20: 143 | P20: 550 | Q20: 2410 | R20: + | U20: Sottopeso
A21: 19 | B21: STELLA SIMONE | C21: X | D21: M | E21: 2002 | F21: 52.2 | G21: 163 | H21: 19.64695698 | I21: D | K21: S | N21: -16 | O21: 184 | P21: 535 | Q21: 2496 | R21: + | U21: Sottopeso
A22: 20 | B22: TEDESCO SARIO | C22: X | D22: M | E22: 2002 | F22: 59.2 | G22: 173 | H22: 19.78014635 | I22: D | K22: I | N22: -22 | O22: 168 | P22: 582 | Q22: 3147 | R22: = | U22: Sottopeso
A23: 21 | B23: TRIPODI ALESSIO | C23: X | D23: M | E23: 2002 | F23: 53.1 | G23: 165 | H23: 19.50413223 | I23: D | K23: S | N23: 17 | O23: 232 | P23: 444 | Q23: 2265 | R23: + | U23: Sottopeso
A24: 22 | B24: VENESELLI DANIELE | C24: X | D24: M | E24: 2002 | F24: 49 | G24: 165 | H24: 17.99816345 | I24: D | K24: I | N24: 9 | O24: 212 | P24: 471 | Q24: 2478 | R24: = | U24: Sottopeso
A25: 23
A26: 24
A27: 25
A28: 26
A29: 27
A30: 28
A31: 29
A32: 30
B35: Alunni : | C35: =COUNTIF(B3:B32,"<>"&"") -> 22 | I35: Dx | J35: Sx | K35: S | L35: NS | M35: I
B36: Media | C36: =COUNTIF(C3:C32,"X")/C35 -> 0.8181818182 | D36: =(COUNTIFS(D3:D32,"M",C3:C32,"X")+COUNTIFS(D3:D32,"F",C3:C32,"X"))/C39 -> 1 | E36: =AVERAGE(E3:E32) -> 2002 | F36: =AVERAGEIFS(F3:F32,C3:C32,"X") -> 59.28333333 | G36: =AVERAGEIFS(G3:G32,C3:C32,"X") -> 166.6666667 | H36: =AVERAGEIFS(H3:H32,C3:C32,"X") -> 21.22852398 | I36: =(COUNTIFS(I3:I32,"D",C3:C32,"X")/C39) -> 1 | J36: =(COUNTIFS(I3:I32,"S",C3:C32,"X")/C39) -> 0 | K36: =(COUNTIFS(K3:K32,"S",C3:C32,"X")/C39) -> 0.5 | L36: =(COUNTIFS(K3:K32,"N",C3:C32,"X")/C39) -> 0 | M36: =(COUNTIFS(K3:K32,"I",C3:C32,"X")/C39) -> 0.5 | N36: =AVERAGEIFS(N3:N32,C3:C32,"X") -> -6.111111111 | O36: =AVERAGEIFS(O3:O32,C3:C32,"X") -> 187 | P36: =AVERAGEIFS(P3:P32,C3:C32,"X") -> 512.7222222 | Q36: =AVERAGEIFS(Q3:Q32,C3:C32,"X") -> 2552.722222 | R36: =COUNTIF(R$3:R$32,"=++")/COUNTIFS(R$3:R$32,"<>X",R$3:R$32,"<>") -> 0.2222222222 | S36: =COUNTIF(S$3:S$32,"=++")/COUNTIFS(S$3:S$32,"<>X",S$3:S$32,"<>") -> 
B37: Media maschi | C37: =COUNTIFS(C3:C32,"X",D3:D32,"M")/C35 -> 0.7727272727 | D37: =COUNTIFS(D3:D32,"M",C3:C32,"X")/C39 -> 0.9444444444 | E37: =AVERAGEIFS(E3:E32,C3:C32,"X",D3:D32,"M") -> 2002.058824 | F37: =AVERAGEIFS(F3:F32,C3:C32,"X",D3:D32,"M") -> 59.65294118 | G37: =AVERAGEIFS(G3:G32,C3:C32,"X",D3:D32,"M") -> 167.1764706 | H37: =AVERAGEIFS(H3:H32,C3:C32,"X",D3:D32,"M") -> 21.2284035 | I37: =(COUNTIFS(I3:I32,"D",C3:C32,"X",D3:D32,"M")/COUNTIFS(D3:D32,"M",C3:C32,"X")) -> 1 | J37: =(COUNTIFS(I3:I32,"S",C3:C32,"X",D3:D32,"M")/COUNTIFS(D3:D32,"M",C3:C32,"X")) -> 0 | K37: =(COUNTIFS(K3:K32,"S",C3:C32,"X",D3:D32,"M")/COUNTIFS(D3:D32,"M",C3:C32,"X")) -> 0.5294117647 | L37: =(COUNTIFS(K3:K32,"N",C3:C32,"X",D3:D32,"M")/COUNTIFS(D3:D32,"M",C3:C32,"X")) -> 0 | M37: =(COUNTIFS(K3:K32,"I",C3:C32,"X",D3:D32,"M")/COUNTIFS(D3:D32,"M",C3:C32,"X")) -> 0.4705882353 | N37: =AVERAGEIFS(N3:N32,C3:C32,"X",D3:D32,"M") -> -6.705882353 | O37: =AVERAGEIFS(O3:O32,C3:C32,"X",D3:D32,"M") -> 188.5294118 | P37: =AVERAGEIFS(P3:P32,C3:C32,"X",D3:D32,"M") -> 508.6470588 | Q37: =AVERAGEIFS(Q3:Q32,C3:C32,"X",D3:D32,"M") -> 2528.588235 | R37: =COUNTIF(R$3:R$32,"=+")/COUNTIFS(R$3:R$32,"<>X",R$3:R$32,"<>") -> 0.5 | S37: =COUNTIF(S$3:S$32,"=+")/COUNTIFS(S$3:S$32,"<>X",S$3:S$32,"<>") -> 
B38: Media femmine | C38: =COUNTIFS(C4:C32,"X",D4:D32,"F")/C35 -> 0.04545454545 | D38: =COUNTIFS(D3:D32,"F",C3:C32,"X")/C39 -> 0.05555555556 | E38: =AVERAGEIFS(E3:E32,C3:C32,"X",D3:D32,"F") -> 2003 | F38: =AVERAGEIFS(F3:F32,C3:C32,"X",D3:D32,"F") -> 53 | G38: =AVERAGEIFS(G3:G32,C3:C32,"X",D3:D32,"F") -> 158 | H38: =AVERAGEIFS(H3:H32,C3:C32,"X",D3:D32,"F") -> 21.23057202 | I38: =(COUNTIFS(I3:I32,"D",C3:C32,"X",D3:D32,"F")/COUNTIFS(D3:D32,"F",C3:C32,"X")) -> 1 | J38: =(COUNTIFS(I3:I32,"S",C3:C32,"X",D3:D32,"F")/COUNTIFS(D3:D32,"F",C3:C32,"X")) -> 0 | K38: =(COUNTIFS(K3:K32,"S",C3:C32,"X",D3:D32,"F")/COUNTIFS(D3:D32,"F",C3:C32,"X")) -> 0 | L38: =(COUNTIFS(K3:K32,"N",C3:C32,"X",D3:D32,"F")/COUNTIFS(D3:D32,"F",C3:C32,"X")) -> 0 | M38: =(COUNTIFS(K3:K32,"N",C3:C32,"X",D3:D32,"F")/COUNTIFS(D3:D32,"F",C3:C32,"X")) -> 0 | N38: =AVERAGEIFS(N3:N32,C3:C32,"X",D3:D32,"F") -> 4 | O38: =AVERAGEIFS(O3:O32,C3:C32,"X",D3:D32,"F") -> 161 | P38: =AVERAGEIFS(P3:P32,C3:C32,"X",D3:D32,"F") -> 582 | Q38: =AVERAGEIFS(Q3:Q32,C3:C32,"X",D3:D32,"F") -> 2963 | R38: =COUNTIF(R$3:R$32,"==")/COUNTIFS(R$3:R$32,"<>X",R$3:R$32,"<>") -> 0.2222222222 | S38: =COUNTIF(S$3:S$32,"==")/COUNTIFS(S$3:S$32,"<>X",S$3:S$32,"<>") -> 
B39: Presenti | C39: =COUNTIF(C3:C32,"X") -> 18 | N39: Record | R39: =COUNTIF(R$3:R$32,"-")/COUNTIFS(R$3:R$32,"<>X",R$3:R$32,"<>") -> 0 | S39: =COUNTIF(S$3:S$32,"-")/COUNTIFS(S$3:S$32,"<>X",S$3:S$32,"<>") -> 
N40: =MAX(N3:N32) -> 17 | O40: =MAX(O3:O32) -> 232 | P40: =MIN(P3:P32) -> 444 | Q40: =MIN(Q3:Q32) -> 2225 | R40: =COUNTIF(R$3:R$32,"--")/COUNTIFS(R$3:R$32,"<>X",R$3:R$32,"<>") -> 0 | S40: =COUNTIF(S$3:S$32,"--")/COUNTIFS(S$3:S$32,"<>X",S$3:S$32,"<>") -> 
N41: =INDEX(B3:B32,MATCH(N40,N3:N32,0),1) -> TRIPODI ALESSIO | O41: =INDEX(B3:B32,MATCH(O40,O3:O32,0),1) -> TRIPODI ALESSIO | P41: =INDEX(B3:B32,MATCH(P40,P3:P32,0),1) -> TRIPODI ALESSIO | Q41: =INDEX(B3:B32,MATCH(Q40,Q3:Q32,0),1) -> BRANCIAMORE RICCARDO

Sheet 1LA
A1: MODELLO | Z1: LEGENDA
A2: N° | B2: Alunno | C2: Presente | D2: Sex | E2: Anno | F2: Peso | G2: Statura | H2: BMI | I2: S/D | K2: S/N/I | N2: Flessibilità | O2: Ldf | P2: Velocità | Q2: Destrezza | R2: Volley | S2: Basket | T2: Note | V2: Sport | Z2: COLONNA | AA2: FUNZIONE | AC2: SIMBOLO
A3: 1 | B3: ASTROLOGO ANGELO | D3: M | H3: =IF(C3 = "X",F3/(G3/100)^2,"") ->  | T3: =IF(AND(C3<>"X",B3<>""),"Assente",IF(AND(B3="",C3="X"),"??","")) -> Assente | U3: =IF(AND(C3="X",D3="M"),IF(H3<>"",IF(H3<20.7,"Sottopeso",IF(H3>27.8,"Sovrappeso","Normopeso")),""),IF(AND(C3="X",D3="F"),IF(H3<>"",IF(H3<19.1,"Sottopeso",IF(H3>27.3,"Sovrappeso","Normopeso")),""),"")) ->  | Z3: I-J | AA3: MANCINO O DESTRO | AC3: S/D
A4: 2 | B4: BERNABE DONALINE | D4: M | E4: 2001 | H4: =IF(C4 = "X",F4/(G4/100)^2,"") ->  | T4: =IF(AND(C4<>"X",B4<>""),"Assente",IF(AND(B4="",C4="X"),"??","")) -> Assente | U4: =IF(AND(C4="X",D4="M"),IF(H4<>"",IF(H4<20.7,"Sottopeso",IF(H4>27.8,"Sovrappeso","Normopeso")),""),IF(AND(C4="X",D4="F"),IF(H4<>"",IF(H4<19.1,"Sottopeso",IF(H4>27.3,"Sovrappeso","Normopeso")),""),"")) ->  | Z4: K-L-M | AA4: SPORTIVO - NON SPORTIVO - INTERMEDIO | AC4: S/N/I
A5: 3 | B5: BIANCHI ALESSANDRO | C5: X | D5: M | E5: 2001 | F5: 73.4 | G5: 169 | H5: 25.69938027 | I5: D | K5: S | N5: 0 | O5: 182 | P5: 478 | Q5: 2566 | R5: ++ | S5: ++ | U5: Normopeso | Z5: O | AA5: SALTO IN LUNGO DA FERMO | AC5: NUMERICO
A6: 4 | B6: CALO' REBECCA | C6: X | D6: F | E6: 2003 | F6: 60.6 | G6: 153 | H6: 25.88747917 | I6: D | K6: I | N6: -22 | O6: 110 | P6: 662 | Q6: 3750 | R6: - | S6: = | U6: Normopeso | Z6: SPORT | AA6: ALUNNO SELEZIONATO PER SQUADRA | AC6: X
A7: 5 | B7: CAPONE ANDREA | C7: X | D7: M | E7: 2002 | F7: 56.9 | G7: 172 | H7: 19.23336939 | I7: D | K7: S | N7: -2 | O7: 223 | P7: 517 | Q7: 2600 | R7: + | S7: + | U7: Sottopeso
A8: 6 | B8: COLASANTI DAMIANO | C8: X | D8: M | E8: 2002 | F8: 60.6 | G8: 170 | H8: 20.96885813 | I8: D | K8: S | N8: 3 | O8: 193 | P8: 484 | Q8: 2343 | R8: + | S8: + | U8: Normopeso | Z8: TUTTI I DATI VANNO INSERITI IN FORMATO CAPSLOCK (MAIUSCOLO)
A9: 7 | B9: CRISTIANI LORENZO | C9: X | D9: M | E9: 2002 | F9: 47.2 | G9: 157 | H9: 19.14884985 | I9: D | K9: S | N9: 0 | O9: 203 | P9: 502 | Q9: 2331 | R9: + | S9: + | U9: Sottopeso
A10: 8 | B10: D'ALO' LORENZO | C10: X | D10: M | E10: 2002 | F10: 51.5 | G10: 168 | H10: 18.24688209 | I10: D | K10: I | N10: -6 | O10: 204 | P10: 481 | Q10: 2313 | R10: ++ | S10: - | U10: Sottopeso
A11: 9 | B11: D'ATTINO EDOARDO | C11: X | D11: M | E11: 2002 | F11: 47.4 | G11: 162 | H11: 18.06127115 | I11: D | K11: I | N11: -1 | O11: 183 | P11: 587 | Q11: 2672 | R11: = | S11: + | U11: Sottopeso
A12: 10 | B12: FRANELLI PIETRO | C12: X | D12: M | E12: 2002 | F12: 52.9 | G12: 167 | H12: 18.96805192 | I12: D | K12: I | N12: -5 | O12: 163 | P12: 540 | Q12: 2593 | R12: ++ | S12: + | U12: Sottopeso
A13: 11 | B13: GAGLIARDINI DAVIDE | C13: X | D13: M | E13: 2002 | F13: 55.4 | G13: 168 | H13: 19.62868481 | I13: D | K13: S | N13: 8 | O13: 211 | P13: 475 | Q13: 2506 | R13: ++ | S13: ++ | U13: Sottopeso
A14: 12 | B14: GROSSI SALVATORE | C14: X | D14: M | E14: 2002 | F14: 52.6 | G14: 168 | H14: 18.63662132 | I14: D | K14: I | N14: -14 | O14: 182 | P14: 488 | Q14: 2332 | R14: = | S14: = | U14: Sottopeso
A15: 13 | B15: MAGGI GIORGIA | C15: X | D15: F | E15: 2002 | F15: 49.4 | G15: 165 | H15: 18.14508724 | I15: D | K15: S | N15: -10 | O15: 153 | P15: 566 | Q15: 2960 | R15: = | S15: = | U15: Sottopeso
A16: 14 | B16: NAPPI GIULIO | C16: X | D16: M | E16: 2003 | F16: 40.6 | G16: 153 | H16: 17.34375667 | I16: D | K16: S | N16: -15 | O16: 180 | P16: 537 | Q16: 2672 | R16: / | S16: / | U16: Sottopeso
A17: 15 | B17: ORSOLA RICCARDO | C17: X | D17: M | E17: 2002 | F17: 45.3 | G17: 155 | H17: 18.855359 | I17: D | K17: I | N17: -21 | O17: 140 | P17: 615 | Q17: 2987 | R17: + | S17: = | U17: Sottopeso
A18: 16 | B18: PICHINI LEONARDO | C18: X | D18: M | E18: 2003 | F18: 60.3 | G18: 167 | H18: 21.6214278 | I18: D | K18: I | N18: -15 | O18: 165 | P18: 560 | Q18: 2547 | R18: + | S18: + | U18: Normopeso
A19: 17 | B19: SANGERMANO ANDREA | D19: M | E19: 2003 | T19: Assente
A20: 18 | B20: SANTOPADRE LEONARDO | C20: X | D20: M | E20: 2002 | F20: 65.5 | G20: 165 | H20: 24.05876951 | I20: S | K20: I | N20: -20 | O20: 169 | P20: 559 | Q20: 2775 | R20: + | S20: + | U20: Normopeso
A21: 19 | B21: SCAFETTA LETIZIA | C21: X | D21: F | E21: 2002 | F21: 49.2 | G21: 151 | H21: 21.57800096 | I21: S | K21: I | N21: 15 | O21: 130 | P21: 618 | Q21: 3031 | R21: = | S21: = | U21: Normopeso
A22: 20 | B22: SENTINELLI TOMMASO | C22: X | D22: M | E22: 2001 | F22: 55.3 | G22: 165 | H22: 20.31221304 | I22: D | K22: I | N22: 0 | O22: 172 | P22: 550 | Q22: 2737 | R22: + | S22: + | U22: Sottopeso
A23: 21
A24: 22
A25: 23
A26: 24
A27: 25
A28: 26
A29: 27
A30: 28
A31: 29
A32: 30
B35: Alunni : | C35: =COUNTIF(B3:B32,"<>"&"") -> 20 | I35: D | J35: S | K35: S | L35: N | M35: I
B36: Media | C36: =COUNTIF(C3:C32,"X")/C35 -> 0.85 | D36: =(COUNTIFS(D3:D32,"M",C3:C32,"X")+COUNTIFS(D3:D32,"F",C3:C32,"X"))/C39 -> 1 | E36: =AVERAGE(E3:E32) -> 2002.052632 | F36: =AVERAGEIFS(F3:F32,C3:C32,"X") -> 54.35882353 | G36: =AVERAGEIFS(G3:G32,C3:C32,"X") -> 163.2352941 | H36: =AVERAGEIFS(H3:H32,C3:C32,"X") -> 20.37612131 | I36: =(COUNTIFS(I3:I32,"D",C3:C32,"X")/C39) -> 0.8823529412 | J36: =(COUNTIFS(I3:I32,"S",C3:C32,"X")/C39) -> 0.1176470588 | K36: =(COUNTIFS(K3:K32,"S",C3:C32,"X")/C39) -> 0.4117647059 | L36: =(COUNTIFS(K3:K32,"N",C3:C32,"X")/C39) -> 0 | M36: =(COUNTIFS(K3:K32,"I",C3:C32,"X")/C39) -> 0.5882352941 | N36: =AVERAGEIFS(N3:N32,C3:C32,"X") -> -6.176470588 | O36: =AVERAGEIFS(O3:O32,C3:C32,"X") -> 174.2941176 | P36: =AVERAGEIFS(P3:P32,C3:C32,"X") -> 542.2941176 | Q36: =AVERAGEIFS(Q3:Q32,C3:C32,"X") -> 2689.117647 | R36: =COUNTIF(R$3:R$32,"=++")/COUNTIFS(R$3:R$32,"<>X",R$3:R$32,"<>") -> 0.2352941176 | S36: =COUNTIF(S$3:S$32,"=++")/COUNTIFS(S$3:S$32,"<>X",S$3:S$32,"<>") -> 0.1176470588
B37: Media maschi | C37: =COUNTIFS(C3:C32,"X",D3:D32,"M")/C35 -> 0.7 | D37: =COUNTIFS(D3:D32,"M",C3:C32,"X")/C39 -> 0.8235294118 | E37: =AVERAGEIFS(E3:E32,C3:C32,"X",D3:D32,"M") -> 2002 | F37: =AVERAGEIFS(F3:F32,C3:C32,"X",D3:D32,"M") -> 54.63571429 | G37: =AVERAGEIFS(G3:G32,C3:C32,"X",D3:D32,"M") -> 164.7142857 | H37: =AVERAGEIFS(H3:H32,C3:C32,"X",D3:D32,"M") -> 20.05596393 | I37: =(COUNTIFS(I3:I32,"D",C3:C32,"X",D3:D32,"M")/COUNTIFS(D3:D32,"M",C3:C32,"X")) -> 0.9285714286 | J37: =(COUNTIFS(I3:I32,"S",C3:C32,"X",D3:D32,"M")/COUNTIFS(D3:D32,"M",C3:C32,"X")) -> 0.07142857143 | K37: =(COUNTIFS(K3:K32,"S",C3:C32,"X",D3:D32,"M")/COUNTIFS(D3:D32,"M",C3:C32,"X")) -> 0.4285714286 | L37: =(COUNTIFS(K3:K32,"N",C3:C32,"X",D3:D32,"M")/COUNTIFS(D3:D32,"M",C3:C32,"X")) -> 0 | M37: =(COUNTIFS(K3:K32,"I",C3:C32,"X",D3:D32,"M")/COUNTIFS(D3:D32,"M",C3:C32,"X")) -> 0.5714285714 | N37: =AVERAGEIFS(N3:N32,C3:C32,"X",D3:D32,"M") -> -6.285714286 | O37: =AVERAGEIFS(O3:O32,C3:C32,"X",D3:D32,"M") -> 183.5714286 | P37: =AVERAGEIFS(P3:P32,C3:C32,"X",D3:D32,"M") -> 526.6428571 | Q37: =AVERAGEIFS(Q3:Q32,C3:C32,"X",D3:D32,"M") -> 2569.571429 | R37: =COUNTIF(R$3:R$32,"=+")/COUNTIFS(R$3:R$32,"<>X",R$3:R$32,"<>") -> 0.4117647059 | S37: =COUNTIF(S$3:S$32,"=+")/COUNTIFS(S$3:S$32,"<>X",S$3:S$32,"<>") -> 0.4705882353
B38: Media femmine | C38: =COUNTIFS(C4:C32,"X",D4:D32,"F")/C35 -> 0.15 | D38: =COUNTIFS(D3:D32,"F",C3:C32,"X")/C39 -> 0.1764705882 | E38: =AVERAGEIFS(E3:E32,C3:C32,"X",D3:D32,"F") -> 2002.333333 | F38: =AVERAGEIFS(F3:F32,C3:C32,"X",D3:D32,"F") -> 53.06666667 | G38: =AVERAGEIFS(G3:G32,C3:C32,"X",D3:D32,"F") -> 156.3333333 | H38: =AVERAGEIFS(H3:H32,C3:C32,"X",D3:D32,"F") -> 21.87018913 | I38: =(COUNTIFS(I3:I32,"D",C3:C32,"X",D3:D32,"F")/COUNTIFS(D3:D32,"F",C3:C32,"X")) -> 0.6666666667 | J38: =(COUNTIFS(I3:I32,"S",C3:C32,"X",D3:D32,"F")/COUNTIFS(D3:D32,"F",C3:C32,"X")) -> 0.3333333333 | K38: =(COUNTIFS(K3:K32,"S",C3:C32,"X",D3:D32,"F")/COUNTIFS(D3:D32,"F",C3:C32,"X")) -> 0.3333333333 | L38: =(COUNTIFS(K3:K32,"N",C3:C32,"X",D3:D32,"F")/COUNTIFS(D3:D32,"F",C3:C32,"X")) -> 0 | M38: =(COUNTIFS(K3:K32,"I",C3:C32,"X",D3:D32,"F")/COUNTIFS(D3:D32,"F",C3:C32,"X")) -> 0.6666666667 | N38: =AVERAGEIFS(N3:N32,C3:C32,"X",D3:D32,"F") -> -5.666666667 | O38: =AVERAGEIFS(O3:O32,C3:C32,"X",D3:D32,"F") -> 131 | P38: =AVERAGEIFS(P3:P32,C3:C32,"X",D3:D32,"F") -> 615.3333333 | Q38: =AVERAGEIFS(Q3:Q32,C3:C32,"X",D3:D32,"F") -> 3247 | R38: =COUNTIF(R$3:R$32,"==")/COUNTIFS(R$3:R$32,"<>X",R$3:R$32,"<>") -> 0.2352941176 | S38: =COUNTIF(S$3:S$32,"==")/COUNTIFS(S$3:S$32,"<>X",S$3:S$32,"<>") -> 0.2941176471
B39: Presenti | C39: =COUNTIF(C3:C32,"X") -> 17 | N39: Record | R39: =COUNTIF(R$3:R$32,"-")/COUNTIFS(R$3:R$32,"<>X",R$3:R$32,"<>") -> 0.05882352941 | S39: =COUNTIF(S$3:S$32,"-")/COUNTIFS(S$3:S$32,"<>X",S$3:S$32,"<>") -> 0.05882352941
N40: =MAX(N3:N32) -> 15 | O40: =MAX(O3:O32) -> 223 | P40: =MIN(P3:P32) -> 475 | Q40: =MIN(Q3:Q32) -> 2313 | R40: =COUNTIF(R$3:R$32,"--")/COUNTIFS(R$3:R$32,"<>X",R$3:R$32,"<>") -> 0 | S40: =COUNTIF(S$3:S$32,"--")/COUNTIFS(S$3:S$32,"<>X",S$3:S$32,"<>") -> 0
N41: =INDEX(B3:B32,MATCH(N40,N3:N32,0),1) -> SCAFETTA LETIZIA | O41: =INDEX(B3:B32,MATCH(O40,O3:O32,0),1) -> CAPONE ANDREA | P41: =INDEX(B3:B32,MATCH(P40,P3:P32,0),1) -> GAGLIARDINI DAVIDE | Q41: =INDEX(B3:B32,MATCH(Q40,Q3:Q32,0),1) -> D'ALO' LORENZO

Sheet 1LB
A1: MODELLO | Z1: LEGENDA
A2: N° | B2: Alunno | C2: Presente | D2: Sex | E2: Anno | F2: Peso | G2: Statura | H2: BMI | I2: S/D | K2: S/N/I | N2: Flessibilità | O2: Ldf | P2: Velocità | Q2: Destrezza | R2: Volley | S2: Basket | T2: Note | V2: Sport | W2: Sport | Z2: COLONNA | AA2: FUNZIONE | AC2: SIMBOLO
A3: 1 | B3: BELLONI VITTORIO | C3: X | D3: M | E3: 2002 | F3: 45.6 | G3: 161 | H3: =IF(C3 = "X",F3/(G3/100)^2,"") -> 17.59191389 | I3: D | K3: S | N3: -15 | O3: 142 | P3: 553 | Q3: 2678 | R3: + | S3: = | T3: =IF(AND(C3<>"X",B3<>""),"Assente",IF(AND(B3="",C3="X"),"??","")) ->  | U3: =IF(AND(C3="X",D3="M"),IF(H3<>"",IF(H3<20.7,"Sottopeso",IF(H3>27.8,"Sovrappeso","Normopeso")),""),IF(AND(C3="X",D3="F"),IF(H3<>"",IF(H3<19.1,"Sottopeso",IF(H3>27.3,"Sovrappeso","Normopeso")),""),"")) -> Sottopeso | Z3: I-J | AA3: MANCINO O DESTRO | AC3: S/D
A4: 2 | B4: BERNABE | C4: X | D4: F | E4: 2002 | F4: 48.3 | G4: 157 | H4: =IF(C4 = "X",F4/(G4/100)^2,"") -> 19.59511542 | I4: D | K4: N | N4: -19 | O4: 150 | P4: 644 | Q4: 3322 | R4: = | S4: = | T4: =IF(AND(C4<>"X",B4<>""),"Assente",IF(AND(B4="",C4="X"),"??","")) ->  | U4: =IF(AND(C4="X",D4="M"),IF(H4<>"",IF(H4<20.7,"Sottopeso",IF(H4>27.8,"Sovrappeso","Normopeso")),""),IF(AND(C4="X",D4="F"),IF(H4<>"",IF(H4<19.1,"Sottopeso",IF(H4>27.3,"Sovrappeso","Normopeso")),""),"")) -> Normopeso | Z4: K-L-M | AA4: SPORTIVO - NON SPORTIVO - INTERMEDIO | AC4: S/N/I
A5: 3 | B5: BRUGNOLI | C5: X | D5: M | E5: 2002 | F5: 59.6 | G5: 153 | H5: 25.46029305 | I5: D | K5: N | N5: -17 | O5: 138 | P5: 616 | Q5: 3428 | R5: = | S5: = | U5: Normopeso | Z5: O | AA5: SALTO IN LUNGO DA FERMO | AC5: NUMERICO
A6: 4 | B6: CANTONE | C6: X | D6: M | E6: 2002 | F6: 60.3 | G6: 170 | H6: 20.8650519 | I6: D | K6: I | N6: 0 | O6: 204 | P6: 468 | Q6: 2188 | R6: + | S6: + | U6: Normopeso | Z6: SPORT | AA6: ALUNNO SELEZIONATO PER SQUADRA | AC6: X
A7: 5 | B7: CAPORALI | D7: M | E7: 2001 | I7: D | K7: S | T7: Assente
A8: 6 | B8: CHITI | C8: X | D8: M | E8: 2002 | F8: 64.5 | G8: 170 | H8: 22.3183391 | I8: D | K8: S | N8: 0 | O8: - | P8: - | Q8: - | R8: ++ | S8: + | U8: Normopeso | Z8: TUTTI I DATI VANNO INSERITI IN FORMATO CAPSLOCK (MAIUSCOLO)
A9: 7 | B9: COEN | C9: X | D9: M | E9: 2001 | F9: 44.8 | G9: 161 | H9: 17.28328382 | I9: D | K9: I | N9: -17 | O9: 187 | P9: 525 | Q9: 2621 | R9: = | S9: = | U9: Sottopeso
A10: 8 | B10: D’ALESSANDRO | C10: X | D10: F | E10: 2002 | F10: 58.6 | G10: 172 | H10: 19.80800433 | I10: D | K10: I | N10: 23 cm | O10: 154 | P10: 556 | Q10: 3238 | R10: + | S10: ++ | U10: Normopeso
A11: 9 | B11: DE VINCENZI | C11: X | D11: M | E11: 2002 | F11: 80.1 | G11: 175 | H11: 26.15510204 | I11: D | K11: S | N11: -2 | O11: 195 | P11: 486 | Q11: 2478 | R11: ++* | S11: ++* | U11: Normopeso
A12: 10 | B12: EMIGLI | C12: X | D12: M | E12: 2001 | F12: 59.2 | G12: 174 | H12: 19.55344167 | I12: D | K12: S | N12: -22 | O12: 192 | P12: 493 | Q12: 2431 | R12: + | S12: + | U12: Sottopeso
A13: 11 | B13: FIORETTO | C13: X | D13: M | E13: 2002 | F13: 49.4 | G13: 157 | H13: 20.04138099 | I13: D | K13: I | N13: -5 cm | O13: 160cm | P13: 5’’41 | Q13: 25’’03 | R13: + | S13: ++ | U13: Sottopeso
A14: 12 | B14: GASPARRI | D14: M | E14: 2001 | T14: Assente
A15: 13 | B15: MANGIONE | C15: X | D15: M | E15: 2003 | F15: 40.2 | G15: 153 | H15: 17.17288222 | I15: D | K15: I | N15: -23 | O15: 122 | P15: 703 | Q15: 3659 | R15: - | S15: = | U15: Sottopeso
A16: 14 | B16: MELITO | C16: X | D16: F | E16: 2002 | F16: 56.7 | G16: 154 | H16: 23.90791027 | I16: D | K16: I | N16: 6 cm | O16: 138 | P16: 579 | Q16: 3872 | R16: + | S16: + | U16: Normopeso
A17: 15 | B17: MINNEI | C17: X | D17: M | E17: 2002 | F17: 52.6 | G17: 150 | H17: 23.37777778 | I17: S | K17: S | N17: 0 | O17: 152 | P17: 594 | Q17: 2778 | R17: = | S17: = | U17: Normopeso
A18: 16 | B18: NURUL | D18: F | E18: 2000 | T18: Assente
A19: 17 | B19: PERONI | C19: x | D19: F | E19: 2002 | F19: 40.9 | G19: 153 | H19: 17.47191251 | I19: D | K19: I | N19: 25 cm | O19: 145 | P19: 572 | Q19: 2762 | R19: = | S19: = | U19: Sottopeso
A20: 18 | B20: RENCRICCA | C20: X | D20: M | E20: 2003 | F20: 56.5 | G20: 158 | H20: 22.63259093 | I20: D | K20: S | N20: -7 | O20: 170 | P20: 557 | Q20: 2691 | R20: ++ | S20: + | U20: Normopeso
A21: 19 | B21: ROMEO | C21: X | D21: M | E21: 2002 | F21: 43.2 | G21: 155 | H21: 17.98126951 | I21: D | K21: S | N21: 0 | O21: 161 | P21: 559 | Q21: 2281 | R21: + | S21: ++ | U21: Sottopeso
A22: 20 | B22: RULLO | C22: X | D22: M | E22: 2003 | F22: 45.9 | G22: 163 | H22: 17.27577252 | I22: D | K22: S | N22: -15 | O22: 179 | P22: 515 | Q22: 2472 | R22: + | S22: + | U22: Sottopeso
A23: 21
A24: 22
A25: 23
A26: 24
A27: 25
A28: 26
A29: 27
A30: 28
A31: 29
A32: 30
B35: Alunni : | C35: =COUNTIF(B3:B32,"<>"&"") -> 30 | I35: D | J35: S | K35: S | L35: N | M35: I
B36: Media | C36: =COUNTIF(C3:C32,"X")/C35 -> 0.5666666667 | D36: =(COUNTIFS(D3:D32,"M",C3:C32,"X")+COUNTIFS(D3:D32,"F",C3:C32,"X"))/C39 -> 1 | E36: =AVERAGE(E3:E32) -> 2001.85 | F36: =AVERAGEIFS(F3:F32,C3:C32,"X") -> 53.31764706 | G36: =AVERAGEIFS(G3:G32,C3:C32,"X") -> 160.9411765 | H36: =AVERAGEIFS(H3:H32,C3:C32,"X") -> 20.49953188 | I36: =(COUNTIFS(I3:I32,"D",C3:C32,"X")/C39) -> 0.9411764706 | J36: =(COUNTIFS(I3:I32,"S",C3:C32,"X")/C39) -> 0.05882352941 | K36: =(COUNTIFS(K3:K32,"S",C3:C32,"X")/C39) -> 0.4705882353 | L36: =(COUNTIFS(K3:K32,"N",C3:C32,"X")/C39) -> 0.1176470588 | M36: =(COUNTIFS(K3:K32,"I",C3:C32,"X")/C39) -> 0.4117647059 | N36: =AVERAGEIFS(N3:N32,C3:C32,"X") -> -10.53846154 | O36: =AVERAGEIFS(O3:O32,C3:C32,"X") -> 161.9333333 | P36: =AVERAGEIFS(P3:P32,C3:C32,"X") -> 561.3333333 | Q36: =AVERAGEIFS(Q3:Q32,C3:C32,"X") -> 2859.933333 | R36: =COUNTIF(R$3:R$32,"=++")/COUNTIFS(R$3:R$32,"<>X",R$3:R$32,"<>") -> 0.1176470588 | S36: =COUNTIF(S$3:S$32,"=++")/COUNTIFS(S$3:S$32,"<>X",S$3:S$32,"<>") -> 0.1764705882
B37: Media maschi | C37: =COUNTIFS(C3:C32,"X",D3:D32,"M")/C35 -> 0.4333333333 | D37: =COUNTIFS(D3:D32,"M",C3:C32,"X")/C39 -> 0.7647058824 | E37: =AVERAGEIFS(E3:E32,C3:C32,"X",D3:D32,"M") -> 2002.076923 | F37: =AVERAGEIFS(F3:F32,C3:C32,"X",D3:D32,"M") -> 53.99230769 | G37: =AVERAGEIFS(G3:G32,C3:C32,"X",D3:D32,"M") -> 161.5384615 | H37: =AVERAGEIFS(H3:H32,C3:C32,"X",D3:D32,"M") -> 20.59300765 | I37: =(COUNTIFS(I3:I32,"D",C3:C32,"X",D3:D32,"M")/COUNTIFS(D3:D32,"M",C3:C32,"X")) -> 0.9230769231 | J37: =(COUNTIFS(I3:I32,"S",C3:C32,"X",D3:D32,"M")/COUNTIFS(D3:D32,"M",C3:C32,"X")) -> 0.07692307692 | K37: =(COUNTIFS(K3:K32,"S",C3:C32,"X",D3:D32,"M")/COUNTIFS(D3:D32,"M",C3:C32,"X")) -> 0.6153846154 | L37: =(COUNTIFS(K3:K32,"N",C3:C32,"X",D3:D32,"M")/COUNTIFS(D3:D32,"M",C3:C32,"X")) -> 0.07692307692 | M37: =(COUNTIFS(K3:K32,"I",C3:C32,"X",D3:D32,"M")/COUNTIFS(D3:D32,"M",C3:C32,"X")) -> 0.3076923077 | N37: =AVERAGEIFS(N3:N32,C3:C32,"X",D3:D32,"M") -> -9.833333333 | O37: =AVERAGEIFS(O3:O32,C3:C32,"X",D3:D32,"M") -> 167.4545455 | P37: =AVERAGEIFS(P3:P32,C3:C32,"X",D3:D32,"M") -> 551.7272727 | Q37: =AVERAGEIFS(Q3:Q32,C3:C32,"X",D3:D32,"M") -> 2700.454545 | R37: =COUNTIF(R$3:R$32,"=+")/COUNTIFS(R$3:R$32,"<>X",R$3:R$32,"<>") -> 0.4705882353 | S37: =COUNTIF(S$3:S$32,"=+")/COUNTIFS(S$3:S$32,"<>X",S$3:S$32,"<>") -> 0.3529411765
B38: Media femmine | C38: =COUNTIFS(C4:C32,"X",D4:D32,"F")/C35 -> 0.1333333333 | D38: =COUNTIFS(D3:D32,"F",C3:C32,"X")/C39 -> 0.2352941176 | E38: =AVERAGEIFS(E3:E32,C3:C32,"X",D3:D32,"F") -> 2002 | F38: =AVERAGEIFS(F3:F32,C3:C32,"X",D3:D32,"F") -> 51.125 | G38: =AVERAGEIFS(G3:G32,C3:C32,"X",D3:D32,"F") -> 159 | H38: =AVERAGEIFS(H3:H32,C3:C32,"X",D3:D32,"F") -> 20.19573563 | I38: =(COUNTIFS(I3:I32,"D",C3:C32,"X",D3:D32,"F")/COUNTIFS(D3:D32,"F",C3:C32,"X")) -> 1 | J38: =(COUNTIFS(I3:I32,"S",C3:C32,"X",D3:D32,"F")/COUNTIFS(D3:D32,"F",C3:C32,"X")) -> 0 | K38: =(COUNTIFS(K3:K32,"S",C3:C32,"X",D3:D32,"F")/COUNTIFS(D3:D32,"F",C3:C32,"X")) -> 0 | L38: =(COUNTIFS(K3:K32,"N",C3:C32,"X",D3:D32,"F")/COUNTIFS(D3:D32,"F",C3:C32,"X")) -> 0.25 | M38: =(COUNTIFS(K3:K32,"I",C3:C32,"X",D3:D32,"F")/COUNTIFS(D3:D32,"F",C3:C32,"X")) -> 0.75 | N38: =AVERAGEIFS(N3:N32,C3:C32,"X",D3:D32,"F") -> -19 | O38: =AVERAGEIFS(O3:O32,C3:C32,"X",D3:D32,"F") -> 146.75 | P38: =AVERAGEIFS(P3:P32,C3:C32,"X",D3:D32,"F") -> 587.75 | Q38: =AVERAGEIFS(Q3:Q32,C3:C32,"X",D3:D32,"F") -> 3298.5 | R38: =COUNTIF(R$3:R$32,"==")/COUNTIFS(R$3:R$32,"<>X",R$3:R$32,"<>") -> 0.2941176471 | S38: =COUNTIF(S$3:S$32,"==")/COUNTIFS(S$3:S$32,"<>X",S$3:S$32,"<>") -> 0.4117647059
B39: Presenti | C39: =COUNTIF(C3:C32,"X") -> 17 | N39: Record | R39: =COUNTIF(R$3:R$32,"-")/COUNTIFS(R$3:R$32,"<>X",R$3:R$32,"<>") -> 0.05882352941 | S39: =COUNTIF(S$3:S$32,"-")/COUNTIFS(S$3:S$32,"<>X",S$3:S$32,"<>") -> 0
N40: =MAX(N3:N32) -> 0 | O40: =MAX(O3:O32) -> 204 | P40: =MIN(P3:P32) -> 468 | Q40: =MIN(Q3:Q32) -> 2188 | R40: =COUNTIF(R$3:R$32,"--")/COUNTIFS(R$3:R$32,"<>X",R$3:R$32,"<>") -> 0 | S40: =COUNTIF(S$3:S$32,"--")/COUNTIFS(S$3:S$32,"<>X",S$3:S$32,"<>") -> 0
N41: =INDEX(B3:B32,MATCH(N40,N3:N32,0),1) -> CANTONE | O41: =INDEX(B3:B32,MATCH(O40,O3:O32,0),1) -> CANTONE | P41: =INDEX(B3:B32,MATCH(P40,P3:P32,0),1) -> CANTONE | Q41: =INDEX(B3:B32,MATCH(Q40,Q3:Q32,0),1) -> CANTONE

Sheet 1EB
A1: MODELLO | Z1: LEGENDA
A2: N° | B2: Alunno | C2: Presente | D2: Sex | E2: Anno | F2: Peso | G2: Statura | H2: BMI | I2: S/D | K2: S/N/I | N2: Flessibilità | O2: Ldf | P2: Velocità | Q2: Destrezza | R2: Volley | S2: Basket | T2: Note | V2: Sport | Z2: COLONNA | AA2: FUNZIONE | AC2: SIMBOLO
A3: 1 | B3: BARBERIS GIULIA | D3: F | E3: 2002 | H3: =IF(C3 = "X",F3/(G3/100)^2,"") ->  | T3: =IF(AND(C3<>"X",B3<>""),"Assente",IF(AND(B3="",C3="X"),"??","")) -> Assente | U3: =IF(AND(C3="X",D3="M"),IF(H3<>"",IF(H3<20.7,"Sottopeso",IF(H3>27.8,"Sovrappeso","Normopeso")),""),IF(AND(C3="X",D3="F"),IF(H3<>"",IF(H3<19.1,"Sottopeso",IF(H3>27.3,"Sovrappeso","Normopeso")),""),"")) ->  | Z3: I-J | AA3: MANCINO O DESTRO | AC3: S/D
A4: 2 | B4: CARDILLI LAVINIA | C4: X | D4: F | E4: 2002 | F4: 49.3 | G4: 162 | H4: =IF(C4 = "X",F4/(G4/100)^2,"") -> 18.78524615 | I4: D | K4: S | N4: -12 | O4: 168 | P4: 481 | Q4: 2572 | R4: ++ | S4: ++ | T4: =IF(AND(C4<>"X",B4<>""),"Assente",IF(AND(B4="",C4="X"),"??","")) ->  | U4: =IF(AND(C4="X",D4="M"),IF(H4<>"",IF(H4<20.7,"Sottopeso",IF(H4>27.8,"Sovrappeso","Normopeso")),""),IF(AND(C4="X",D4="F"),IF(H4<>"",IF(H4<19.1,"Sottopeso",IF(H4>27.3,"Sovrappeso","Normopeso")),""),"")) -> Sottopeso | Z4: K-L-M | AA4: SPORTIVO - NON SPORTIVO - INTERMEDIO | AC4: S/N/I
A5: 3 | B5: CHIERICONI ANDREADANTE | C5: X | D5: M | E5: 2002 | F5: 49.6 | G5: 169 | H5: 17.36633871 | I5: D | K5: N | N5: -30 | O5: 197 | P5: 528 | U5: Sottopeso | Z5: O | AA5: SALTO IN LUNGO DA FERMO | AC5: NUMERICO
A6: 4 | B6: CLEMENTI MARCO | C6: X | D6: M | E6: 2002 | F6: 63 | G6: 167 | H6: 22.58955144 | I6: D | K6: S | N6: 8 | O6: 222 | P6: 463 | Q6: 2213 | R6: ++ | S6: = | U6: Normopeso | Z6: SPORT | AA6: ALUNNO SELEZIONATO PER SQUADRA | AC6: X
A7: 5 | B7: CONTINI JACOPO | C7: X | D7: M | E7: 2003 | F7: 54 | G7: 163 | H7: 20.32443826 | I7: D | K7: S | N7: -3 | O7: 165 | P7: 493 | Q7: 2237 | R7: ++ | S7: + | U7: Sottopeso
A8: 6 | B8: D'ALENA VLADIMIR | C8: X | D8: M | E8: 2001 | F8: 37.5 | G8: 150 | H8: 16.66666667 | I8: D | K8: S | N8: -11 | O8: 171 | P8: 544 | Q8: 2496 | R8: + | S8: = | U8: Sottopeso | Z8: TUTTI I DATI VANNO INSERITI IN FORMATO CAPSLOCK (MAIUSCOLO)
A9: 7 | B9: DE TORRES ARTHIANN | C9: X | D9: M | E9: 2000 | F9: 64.6 | G9: 176 | H9: 20.85485537 | I9: D | K9: N | N9: -19 | O9: 177 | P9: 547 | Q9: 2765 | R9: + | S9: + | U9: Normopeso
A10: 8 | B10: DI NEPI SAUL | C10: X | D10: M | E10: 2001 | F10: 59.9 | G10: 159 | H10: 23.693683 | I10: D | K10: S | N10: -22 | O10: 134 | P10: 731 | Q10: 4000 | R10: = | S10: + | U10: Normopeso
A11: 9 | B11: FALASCA MICHELA | D11: F | E11: 2002 | T11: Assente
A12: 10 | B12: GUANZON JESTEN | C12: X | D12: F | E12: 2001 | F12: 57.3 | G12: 151 | H12: 25.13047673 | I12: D | K12: S | N12: -16 | U12: Normopeso
A13: 11 | B13: HERNANDEZ INGRID | D13: F | E13: 1997 | T13: Assente
A14: 12 | B14: MANALO KRISTINE | C14: X | D14: F | E14: 2002 | F14: 38.7 | G14: 142 | H14: 19.19262051 | I14: D | K14: N | N14: -12 | U14: Normopeso
A15: 13 | B15: MARZIALE LUDOVICO | C15: X | D15: M | E15: 2002 | F15: 72.2 | G15: 170 | H15: 24.98269896 | I15: D | K15: S | N15: 4 | O15: 183 | P15: 478 | Q15: 2281 | R15: = | S15: + | U15: Normopeso
A16: 14 | B16: MATTIACCI FEDERICO | C16: X | D16: M | E16: 2002 | F16: 71.7 | G16: 173 | H16: 23.95669752 | I16: D | K16: S | N16: 4 | O16: 200 | P16: 435 | R16: ++ | S16: = | U16: Normopeso
A17: 15 | B17: MELONI SABRINA | C17: X | D17: F | E17: 2001 | F17: 56.1 | G17: 155 | H17: 23.35067638 | I17: D | K17: N | N17: -18 | O17: 113 | P17: 594 | Q17: 4200 | R17: + | S17: + | U17: Normopeso
A18: 16 | B18: MORETTI GIULIA | D18: F | E18: 2002 | T18: Assente
A19: 17 | B19: PAULE GENE ANGELO | D19: M | E19: 1997 | T19: Assente
A20: 18 | B20: PIETROLATI RICCARDO | C20: X | D20: M | E20: 2002 | F20: 73.7 | G20: 176 | H20: 23.79261364 | I20: D | K20: S | N20: 9 | O20: 198 | P20: 494 | Q20: 2450 | R20: + | S20: + | U20: Normopeso
A21: 19 | B21: POGGESI ROBERTA | D21: F | E21: 2001 | T21: Assente
A22: 20 | B22: PRUNESTI' COSTANTINO | C22: X | D22: M | E22: 2001 | F22: 64.7 | G22: 177 | H22: 20.65179227 | I22: D | K22: N | N22: 16 | O22: 249 | P22: 462 | Q22: 2131 | R22: + | S22: + | U22: Sottopeso
A23: 21 | B23: RAINALDI FRANCESCO | C23: X | D23: M | E23: 2002 | F23: 55.1 | G23: 164 | H23: 20.48631767 | I23: D | K23: S | N23: 1 | O23: 188 | P23: 525 | Q23: 2342 | R23: + | S23: = | U23: Sottopeso
A24: 22 | B24: RIPANI LETIZIA | C24: X | D24: F | E24: 2002 | F24: 49 | G24: 158 | H24: 19.6282647 | I24: S | K24: S | N24: 5 | O24: 168 | P24: 522 | Q24: 2562 | R24: ++ | S24: + | U24: Normopeso | V24: X
A25: 23 | B25: SONNINO ANGELO | D25: M | E25: 2001 | T25: Assente
A26: 24 | B26: VALENTINI ANDREA | C26: X | D26: M | E26: 2001 | F26: 50.7 | G26: 161 | H26: 19.55943058 | I26: D | K26: S | N26: 12 | O26: 239 | P26: 465 | Q26: 2300 | R26: + | S26: + | U26: Sottopeso
A27: 25
A28: 26
A29: 27
A30: 28
A31: 29
A32: 30
B35: Alunni : | C35: =COUNTIF(B3:B32,"<>"&"") -> 24 | I35: D | J35: S | K35: S | L35: N | M35: I
B36: Media | C36: =COUNTIF(C3:C32,"X")/C35 -> 0.7083333333 | D36: =(COUNTIFS(D3:D32,"M",C3:C32,"X")+COUNTIFS(D3:D32,"F",C3:C32,"X"))/C39 -> 1 | E36: =AVERAGE(E3:E32) -> 2001.208333 | F36: =AVERAGEIFS(F3:F32,C3:C32,"X") -> 56.88823529 | G36: =AVERAGEIFS(G3:G32,C3:C32,"X") -> 163.1176471 | H36: =AVERAGEIFS(H3:H32,C3:C32,"X") -> 21.23602168 | I36: =(COUNTIFS(I3:I32,"D",C3:C32,"X")/C39) -> 0.9411764706 | J36: =(COUNTIFS(I3:I32,"S",C3:C32,"X")/C39) -> 0.05882352941 | K36: =(COUNTIFS(K3:K32,"S",C3:C32,"X")/C39) -> 0.7058823529 | L36: =(COUNTIFS(K3:K32,"N",C3:C32,"X")/C39) -> 0.2941176471 | M36: =(COUNTIFS(K3:K32,"I",C3:C32,"X")/C39) -> 0 | N36: =AVERAGEIFS(N3:N32,C3:C32,"X") -> -4.941176471 | O36: =AVERAGEIFS(O3:O32,C3:C32,"X") -> 184.8 | P36: =AVERAGEIFS(P3:P32,C3:C32,"X") -> 517.4666667 | Q36: =AVERAGEIFS(Q3:Q32,C3:C32,"X") -> 2657.615385 | R36: =COUNTIF(R$3:R$32,"=++")/COUNTIFS(R$3:R$32,"<>X",R$3:R$32,"<>") -> 0.3571428571 | S36: =COUNTIF(S$3:S$32,"=++")/COUNTIFS(S$3:S$32,"<>X",S$3:S$32,"<>") -> 0.07142857143
B37: Media maschi | C37: =COUNTIFS(C3:C32,"X",D3:D32,"M")/C35 -> 0.5 | D37: =COUNTIFS(D3:D32,"M",C3:C32,"X")/C39 -> 0.7058823529 | E37: =AVERAGEIFS(E3:E32,C3:C32,"X",D3:D32,"M") -> 2001.583333 | F37: =AVERAGEIFS(F3:F32,C3:C32,"X",D3:D32,"M") -> 59.725 | G37: =AVERAGEIFS(G3:G32,C3:C32,"X",D3:D32,"M") -> 167.0833333 | H37: =AVERAGEIFS(H3:H32,C3:C32,"X",D3:D32,"M") -> 21.24375701 | I37: =(COUNTIFS(I3:I32,"D",C3:C32,"X",D3:D32,"M")/COUNTIFS(D3:D32,"M",C3:C32,"X")) -> 1 | J37: =(COUNTIFS(I3:I32,"S",C3:C32,"X",D3:D32,"M")/COUNTIFS(D3:D32,"M",C3:C32,"X")) -> 0 | K37: =(COUNTIFS(K3:K32,"S",C3:C32,"X",D3:D32,"M")/COUNTIFS(D3:D32,"M",C3:C32,"X")) -> 0.75 | L37: =(COUNTIFS(K3:K32,"N",C3:C32,"X",D3:D32,"M")/COUNTIFS(D3:D32,"M",C3:C32,"X")) -> 0.25 | M37: =(COUNTIFS(K3:K32,"I",C3:C32,"X",D3:D32,"M")/COUNTIFS(D3:D32,"M",C3:C32,"X")) -> 0 | N37: =AVERAGEIFS(N3:N32,C3:C32,"X",D3:D32,"M") -> -2.583333333 | O37: =AVERAGEIFS(O3:O32,C3:C32,"X",D3:D32,"M") -> 193.5833333 | P37: =AVERAGEIFS(P3:P32,C3:C32,"X",D3:D32,"M") -> 513.75 | Q37: =AVERAGEIFS(Q3:Q32,C3:C32,"X",D3:D32,"M") -> 2521.5 | R37: =COUNTIF(R$3:R$32,"=+")/COUNTIFS(R$3:R$32,"<>X",R$3:R$32,"<>") -> 0.5 | S37: =COUNTIF(S$3:S$32,"=+")/COUNTIFS(S$3:S$32,"<>X",S$3:S$32,"<>") -> 0.6428571429
B38: Media femmine | C38: =COUNTIFS(C4:C32,"X",D4:D32,"F")/C35 -> 0.2083333333 | D38: =COUNTIFS(D3:D32,"F",C3:C32,"X")/C39 -> 0.2941176471 | E38: =AVERAGEIFS(E3:E32,C3:C32,"X",D3:D32,"F") -> 2001.6 | F38: =AVERAGEIFS(F3:F32,C3:C32,"X",D3:D32,"F") -> 50.08 | G38: =AVERAGEIFS(G3:G32,C3:C32,"X",D3:D32,"F") -> 153.6 | H38: =AVERAGEIFS(H3:H32,C3:C32,"X",D3:D32,"F") -> 21.2174569 | I38: =(COUNTIFS(I3:I32,"D",C3:C32,"X",D3:D32,"F")/COUNTIFS(D3:D32,"F",C3:C32,"X")) -> 0.8 | J38: =(COUNTIFS(I3:I32,"S",C3:C32,"X",D3:D32,"F")/COUNTIFS(D3:D32,"F",C3:C32,"X")) -> 0.2 | K38: =(COUNTIFS(K3:K32,"S",C3:C32,"X",D3:D32,"F")/COUNTIFS(D3:D32,"F",C3:C32,"X")) -> 0.6 | L38: =(COUNTIFS(K3:K32,"N",C3:C32,"X",D3:D32,"F")/COUNTIFS(D3:D32,"F",C3:C32,"X")) -> 0.4 | M38: =(COUNTIFS(K3:K32,"I",C3:C32,"X",D3:D32,"F")/COUNTIFS(D3:D32,"F",C3:C32,"X")) -> 0 | N38: =AVERAGEIFS(N3:N32,C3:C32,"X",D3:D32,"F") -> -10.6 | O38: =AVERAGEIFS(O3:O32,C3:C32,"X",D3:D32,"F") -> 149.6666667 | P38: =AVERAGEIFS(P3:P32,C3:C32,"X",D3:D32,"F") -> 532.3333333 | Q38: =AVERAGEIFS(Q3:Q32,C3:C32,"X",D3:D32,"F") -> 3111.333333 | R38: =COUNTIF(R$3:R$32,"==")/COUNTIFS(R$3:R$32,"<>X",R$3:R$32,"<>") -> 0.1428571429 | S38: =COUNTIF(S$3:S$32,"==")/COUNTIFS(S$3:S$32,"<>X",S$3:S$32,"<>") -> 0.2857142857
B39: Presenti | C39: =COUNTIF(C3:C32,"X") -> 17 | N39: Record | R39: =COUNTIF(R$3:R$32,"-")/COUNTIFS(R$3:R$32,"<>X",R$3:R$32,"<>") -> 0 | S39: =COUNTIF(S$3:S$32,"-")/COUNTIFS(S$3:S$32,"<>X",S$3:S$32,"<>") -> 0
N40: =MAX(N3:N32) -> 16 | O40: =MAX(O3:O32) -> 249 | P40: =MIN(P3:P32) -> 435 | Q40: =MIN(Q3:Q32) -> 2131 | R40: =COUNTIF(R$3:R$32,"--")/COUNTIFS(R$3:R$32,"<>X",R$3:R$32,"<>") -> 0 | S40: =COUNTIF(S$3:S$32,"--")/COUNTIFS(S$3:S$32,"<>X",S$3:S$32,"<>") -> 0
N41: =INDEX(B3:B32,MATCH(N40,N3:N32,0),1) -> PRUNESTI' COSTANTINO | O41: =INDEX(B3:B32,MATCH(O40,O3:O32,0),1) -> PRUNESTI' COSTANTINO | P41: =INDEX(B3:B32,MATCH(P40,P3:P32,0),1) -> MATTIACCI FEDERICO | Q41: =INDEX(B3:B32,MATCH(Q40,Q3:Q32,0),1) -> PRUNESTI' COSTANTINO

Sheet 1HA
A1: CLASSE:
A2: N° | B2: Alunno | C2: Presente | D2: Sex | E2: Anno | F2: Peso | G2: Statura | H2: BMI | I2: S/D | K2: Sportivo-Nsportivo-Intermedio | N2: Flessibilità | O2: Ldf | P2: Velocità | Q2: Destrezza | R2: Volley | S2: Basket | T2: Note
A3: 1 | B3: ABD EL MALAK ANGELA HANY YACOUBHI | C3: X | D3: F | E3: 2002 | F3: 93.5 | G3: 162 | H3: =IF(C3 = "X",F3/(G3/100)^2,"") -> 35.62719098 | I3: D | K3: N | N3: -17 | O3: 145 | P3: 653 | Q3: 3840 | R3: = | S3: + | T3: =IF(AND(C3<>"X",B3<>""),"Assente",IF(AND(B3="",C3="X"),"??","")) ->  | U3: =IF(AND(C3="X",D3="M"),IF(H3<>"",IF(H3<20.7,"Sottopeso",IF(H3>27.8,"Sovrappeso","Normopeso")),""),IF(AND(C3="X",D3="F"),IF(H3<>"",IF(H3<19.1,"Sottopeso",IF(H3>27.3,"Sovrappeso","Normopeso")),""),"")) -> Sovrappeso
A4: 2 | B4: BARRECA BENEDETTA | H4: =IF(C4 = "X",F4/(G4/100)^2,"") ->  | T4: =IF(AND(C4<>"X",B4<>""),"Assente",IF(AND(B4="",C4="X"),"??","")) -> Assente | U4: =IF(AND(C4="X",D4="M"),IF(H4<>"",IF(H4<20.7,"Sottopeso",IF(H4>27.8,"Sovrappeso","Normopeso")),""),IF(AND(C4="X",D4="F"),IF(H4<>"",IF(H4<19.1,"Sottopeso",IF(H4>27.3,"Sovrappeso","Normopeso")),""),"")) -> 
A5: 3 | B5: BONIZIO ELISA | C5: X | D5: F | E5: 2002 | F5: 49.2 | G5: 155 | H5: 20.47866805 | I5: D | K5: I | N5: 8 | O5: 124 | P5: 613 | Q5: 3088 | R5: = | S5: + | U5: Normopeso
A6: 4 | B6: DE STEFANO SALVATORE | C6: X | D6: M | E6: 2001 | F6: 64 | G6: 160 | H6: 25 | I6: D | K6: S | N6: -11 | O6: 153 | P6: 593 | Q6: 3135 | R6: = | S6: ++ | U6: Normopeso
A7: 5 | B7: DI TERLIZZI ARIANNA | C7: X | D7: F | E7: 2002 | F7: 50.6 | G7: 160 | H7: 19.765625 | I7: D | K7: S | N7: 0 | O7: 155 | P7: 528 | Q7: 2684 | R7: ++* | S7: ++ | U7: Normopeso
A8: 6 | B8: FARRO IYCEE ROSE CASTILLO | T8: Assente
A9: 7 | B9: GALUPPI RICCARDO | T9: Assente
A10: 8 | B10: GUILLEN FAJARDO SANTIAGO JOSUE | C10: X | D10: M | E10: 1999 | F10: 54.4 | G10: 168 | H10: 19.27437642 | I10: S | K10: I | U10: Sottopeso
A11: 9 | B11: HABIB EISSA PAOLO | T11: Assente
A12: 10 | B12: HOWLADAR RABBI | C12: X | D12: M | E12: 2001 | F12: 53.2 | G12: 168 | H12: 18.84920635 | I12: D | K12: S | N12: -9 | O12: 210 | Q12: 2903 | R12: = | S12: = | U12: Sottopeso
A13: 11 | B13: LUONGO KEVIN | C13: X | E13: 2001 | F13: 68.7 | G13: 178 | H13: 21.68286832 | I13: S | K13: S | N13: 0 | O13: 180 | P13: 481 | Q13: 2469 | R13: O | S13: O
A14: 12 | B14: MARIANI VALERIO | D14: M | E14: 2002 | T14: Assente
A15: 13 | B15: MATURANA RIVADERA SARA NICOLE | C15: X | D15: F | E15: 2001 | F15: 51.4 | G15: 164 | H15: 19.11064842 | I15: D | K15: N | N15: 2 | O15: 138 | P15: 669 | Q15: 3200 | R15: + | S15: + | U15: Normopeso
A16: 14 | B16: MELIS NADIN | C16: X | D16: F | E16: 2002 | F16: 53.4 | G16: 156 | H16: 21.94280079 | I16: D | K16: S | N16: -5 | O16: 160 | P16: 597 | Q16: 2791 | R16: + | S16: + | U16: Normopeso
A17: 15 | B17: MONTRONE CLARA | C17: X | D17: F | E17: 2001 | F17: 48.4 | G17: 161 | H17: 18.67211913 | I17: D | K17: N | N17: 0 | O17: 153 | P17: 581 | Q17: 3015 | R17: = | S17: + | U17: Sottopeso
A18: 16 | B18: PERUGINI GAIA | C18: X | D18: F | E18: 2003 | F18: 52 | G18: 162 | H18: 19.81405274 | I18: D | K18: S | N18: 17 | O18: 147 | P18: 594 | Q18: 2972 | R18: ++ | S18: ++ | U18: Normopeso
A19: 17 | B19: RICCI FLAVIO | C19: X | D19: M | E19: 2002 | F19: 54 | G19: 169 | H19: 18.90690102 | I19: D | K19: S | N19: -12 | O19: 214 | P19: 462 | Q19: 2325 | R19: ++ | S19: + | U19: Sottopeso
A20: 18 | B20: SGRULLETTI BEATRICE | C20: X | D20: F | E20: 2002 | F20: 57.1 | G20: 161 | H20: 22.02847112 | I20: D | K20: S | N20: 10 | O20: 169 | P20: 534 | Q20: 2440 | R20: ++* | S20: ++ | U20: Normopeso
A21: 19 | B21: STANICI EMANUELE | C21: X | D21: M | E21: 2002 | F21: 43 | G21: 160 | H21: 16.796875 | I21: D | K21: S | N21: 3 | O21: 179 | P21: 509 | Q21: 2328 | R21: + | S21: ++ | U21: Sottopeso
A22: 20 | B22: TROVATO JACOPO | C22: X | D22: M | E22: 2002 | F22: 64.8 | G22: 174 | H22: 21.40309156 | I22: D | K22: I | N22: -19 | O22: 171 | P22: 547 | Q22: 2562 | R22: + | S22: + | U22: Normopeso
A23: 21 | B23: VALATOVICH DARYA | C23: X | D23: F | E23: 2002 | F23: 60.8 | G23: 170 | H23: 21.03806228 | I23: S | K23: N | N23: 13 | R23: = | S23: + | U23: Normopeso
A24: 22 | B24: VIVO GEYZEFF REI | C24: X | D24: F | E24: 2002 | F24: 47.1 | G24: 155 | H24: 19.60457856 | I24: D | K24: N | N24: 2 | O24: 134 | P24: 600 | Q24: 2700 | R24: + | S24: + | U24: Normopeso
A25: 23 | B25: YUZON KIMBERLY JOI CORRAI | D25: F | E25: 2001 | O25: 178 | P25: 538 | Q25: 2631 | R25: + | S25: + | T25: Assente
A26: 24 | B26: POP MALINA | C26: X | D26: F | E26: 2000 | F26: 60.2 | G26: 158 | H26: 24.1147252 | I26: D | K26: N | N26: 6 | O26: 155 | P26: 584 | Q26: 2850 | R26: + | S26: + | U26: Normopeso
A27: 25
A28: 26
A29: 27
A30: 28
A31: 29
A32: 30
B35: Alunni : | C35: =COUNTIF(B3:B32,"<>"&"") -> 24 | I35: Dx | J35: Sx | K35: S | L35: NS | M35: I
B36: Media | C36: =COUNTIF(C3:C32,"X")/C35 -> 0.75 | D36: =(COUNTIFS(D3:D32,"M",C3:C32,"X")+COUNTIFS(D3:D32,"F",C3:C32,"X"))/C39 -> 0.9444444444 | E36: =AVERAGE(E3:E32) -> 2001.5 | F36: =AVERAGEIFS(F3:F32,C3:C32,"X") -> 56.98888889 | G36: =AVERAGEIFS(G3:G32,C3:C32,"X") -> 163.3888889 | H36: =AVERAGEIFS(H3:H32,C3:C32,"X") -> 21.33945894 | I36: =(COUNTIFS(I3:I32,"D",C3:C32,"X")/C39) -> 0.8333333333 | J36: =(COUNTIFS(I3:I32,"S",C3:C32,"X")/C39) -> 0.1666666667 | K36: =(COUNTIFS(K3:K32,"S",C3:C32,"X")/C39) -> 0.5 | L36: =(COUNTIFS(K3:K32,"N",C3:C32,"X")/C39) -> 0.3333333333 | M36: =(COUNTIFS(K3:K32,"I",C3:C32,"X")/C39) -> 0.1666666667 | N36: =AVERAGEIFS(N3:N32,C3:C32,"X") -> -0.7058823529 | O36: =AVERAGEIFS(O3:O32,C3:C32,"X") -> 161.6875 | P36: =AVERAGEIFS(P3:P32,C3:C32,"X") -> 569.6666667 | Q36: =AVERAGEIFS(Q3:Q32,C3:C32,"X") -> 2831.375 | R36: =COUNTIF(R$3:R$32,"=++")/COUNTIFS(R$3:R$32,"<>X",R$3:R$32,"<>") -> 0.1111111111 | S36: =COUNTIF(S$3:S$32,"=++")/COUNTIFS(S$3:S$32,"<>X",S$3:S$32,"<>") -> 0.2777777778
B37: Media maschi | C37: =COUNTIFS(C3:C32,"X",D3:D32,"M")/C35 -> 0.25 | D37: =COUNTIFS(D3:D32,"M",C3:C32,"X")/C39 -> 0.3333333333 | E37: =AVERAGEIFS(E3:E32,C3:C32,"X",D3:D32,"M") -> 2001.166667 | F37: =AVERAGEIFS(F3:F32,C3:C32,"X",D3:D32,"M") -> 55.56666667 | G37: =AVERAGEIFS(G3:G32,C3:C32,"X",D3:D32,"M") -> 166.5 | H37: =AVERAGEIFS(H3:H32,C3:C32,"X",D3:D32,"M") -> 20.03840839 | I37: =(COUNTIFS(I3:I32,"D",C3:C32,"X",D3:D32,"M")/COUNTIFS(D3:D32,"M",C3:C32,"X")) -> 0.8333333333 | J37: =(COUNTIFS(I3:I32,"S",C3:C32,"X",D3:D32,"M")/COUNTIFS(D3:D32,"M",C3:C32,"X")) -> 0.1666666667 | K37: =(COUNTIFS(K3:K32,"S",C3:C32,"X",D3:D32,"M")/COUNTIFS(D3:D32,"M",C3:C32,"X")) -> 0.6666666667 | L37: =(COUNTIFS(K3:K32,"N",C3:C32,"X",D3:D32,"M")/COUNTIFS(D3:D32,"M",C3:C32,"X")) -> 0 | M37: =(COUNTIFS(K3:K32,"I",C3:C32,"X",D3:D32,"M")/COUNTIFS(D3:D32,"M",C3:C32,"X")) -> 0.3333333333 | N37: =AVERAGEIFS(N3:N32,C3:C32,"X",D3:D32,"M") -> -9.6 | O37: =AVERAGEIFS(O3:O32,C3:C32,"X",D3:D32,"M") -> 185.4 | P37: =AVERAGEIFS(P3:P32,C3:C32,"X",D3:D32,"M") -> 527.75 | Q37: =AVERAGEIFS(Q3:Q32,C3:C32,"X",D3:D32,"M") -> 2650.6 | R37: =COUNTIF(R$3:R$32,"=+")/COUNTIFS(R$3:R$32,"<>X",R$3:R$32,"<>") -> 0.3888888889 | S37: =COUNTIF(S$3:S$32,"=+")/COUNTIFS(S$3:S$32,"<>X",S$3:S$32,"<>") -> 0.6111111111
B38: Media femmine | C38: =COUNTIFS(C4:C32,"X",D4:D32,"F")/C35 -> 0.4166666667 | D38: =COUNTIFS(D3:D32,"F",C3:C32,"X")/C39 -> 0.6111111111 | E38: =AVERAGEIFS(E3:E32,C3:C32,"X",D3:D32,"F") -> 2001.727273 | F38: =AVERAGEIFS(F3:F32,C3:C32,"X",D3:D32,"F") -> 56.7 | G38: =AVERAGEIFS(G3:G32,C3:C32,"X",D3:D32,"F") -> 160.3636364 | H38: =AVERAGEIFS(H3:H32,C3:C32,"X",D3:D32,"F") -> 22.01790384 | I38: =(COUNTIFS(I3:I32,"D",C3:C32,"X",D3:D32,"F")/COUNTIFS(D3:D32,"F",C3:C32,"X")) -> 0.9090909091 | J38: =(COUNTIFS(I3:I32,"S",C3:C32,"X",D3:D32,"F")/COUNTIFS(D3:D32,"F",C3:C32,"X")) -> 0.09090909091 | K38: =(COUNTIFS(K3:K32,"S",C3:C32,"X",D3:D32,"F")/COUNTIFS(D3:D32,"F",C3:C32,"X")) -> 0.3636363636 | L38: =(COUNTIFS(K3:K32,"N",C3:C32,"X",D3:D32,"F")/COUNTIFS(D3:D32,"F",C3:C32,"X")) -> 0.5454545455 | M38: =(COUNTIFS(K3:K32,"N",C3:C32,"X",D3:D32,"F")/COUNTIFS(D3:D32,"F",C3:C32,"X")) -> 0.5454545455 | N38: =AVERAGEIFS(N3:N32,C3:C32,"X",D3:D32,"F") -> 3.272727273 | O38: =AVERAGEIFS(O3:O32,C3:C32,"X",D3:D32,"F") -> 148 | P38: =AVERAGEIFS(P3:P32,C3:C32,"X",D3:D32,"F") -> 595.3 | Q38: =AVERAGEIFS(Q3:Q32,C3:C32,"X",D3:D32,"F") -> 2958 | R38: =COUNTIF(R$3:R$32,"==")/COUNTIFS(R$3:R$32,"<>X",R$3:R$32,"<>") -> 0.3333333333 | S38: =COUNTIF(S$3:S$32,"==")/COUNTIFS(S$3:S$32,"<>X",S$3:S$32,"<>") -> 0.05555555556
B39: Presenti | C39: =COUNTIF(C3:C32,"X") -> 18 | N39: Record | R39: =COUNTIF(R$3:R$32,"-")/COUNTIFS(R$3:R$32,"<>X",R$3:R$32,"<>") -> 0 | S39: =COUNTIF(S$3:S$32,"-")/COUNTIFS(S$3:S$32,"<>X",S$3:S$32,"<>") -> 0
N40: =MAX(N3:N32) -> 17 | O40: =MAX(O3:O32) -> 214 | P40: =MIN(P3:P32) -> 462 | Q40: =MIN(Q3:Q32) -> 2325 | R40: =COUNTIF(R$3:R$32,"--")/COUNTIFS(R$3:R$32,"<>X",R$3:R$32,"<>") -> 0 | S40: =COUNTIF(S$3:S$32,"--")/COUNTIFS(S$3:S$32,"<>X",S$3:S$32,"<>") -> 0
N41: =INDEX(B3:B32,MATCH(N40,N3:N32,0),1) -> PERUGINI GAIA | O41: =INDEX(B3:B32,MATCH(O40,O3:O32,0),1) -> RICCI FLAVIO | P41: =INDEX(B3:B32,MATCH(P40,P3:P32,0),1) -> RICCI FLAVIO | Q41: =INDEX(B3:B32,MATCH(Q40,Q3:Q32,0),1) -> RICCI FLAVIO

Sheet 1HB
A1: MODELLO | Z1: LEGENDA
A2: N° | B2: Alunno | C2: Presente | D2: Sex | E2: Anno | F2: Peso | G2: Statura | H2: BMI | I2: S/D | K2: S/N/I | N2: Flessibilità | O2: Ldf | P2: Velocità | Q2: Destrezza | R2: Volley | S2: Basket | T2: Note | V2: Sport | W2: Sport | Z2: COLONNA | AA2: FUNZIONE | AC2: SIMBOLO
A3: 1 | B3: ALLOCCA CLARA | D3: F | E3: 2001 | H3: =IF(C3 = "X",F3/(G3/100)^2,"") ->  | T3: =IF(AND(C3<>"X",B3<>""),"Assente",IF(AND(B3="",C3="X"),"??","")) -> Assente | U3: =IF(AND(C3="X",D3="M"),IF(H3<>"",IF(H3<20.7,"Sottopeso",IF(H3>27.8,"Sovrappeso","Normopeso")),""),IF(AND(C3="X",D3="F"),IF(H3<>"",IF(H3<19.1,"Sottopeso",IF(H3>27.3,"Sovrappeso","Normopeso")),""),"")) ->  | Z3: I-J | AA3: MANCINO O DESTRO | AC3: S/D
A4: 2 | B4: AMORI MARCELLO | C4: X | D4: M | E4: 2002 | F4: 48.8 | G4: 167 | H4: =IF(C4 = "X",F4/(G4/100)^2,"") -> 17.49793826 | I4: D | K4: I | N4: 0 | O4: 197 | P4: 494 | Q4: 2347 | R4: = | S4: = | T4: =IF(AND(C4<>"X",B4<>""),"Assente",IF(AND(B4="",C4="X"),"??","")) ->  | U4: =IF(AND(C4="X",D4="M"),IF(H4<>"",IF(H4<20.7,"Sottopeso",IF(H4>27.8,"Sovrappeso","Normopeso")),""),IF(AND(C4="X",D4="F"),IF(H4<>"",IF(H4<19.1,"Sottopeso",IF(H4>27.3,"Sovrappeso","Normopeso")),""),"")) -> Sottopeso | Z4: K-L-M | AA4: SPORTIVO - NON SPORTIVO - INTERMEDIO | AC4: S/N/I
A5: 3 | B5: BALBOA JULLETTA | C5: X | D5: F | E5: 2001 | F5: 56 | G5: 157 | H5: 22.7189744 | I5: S | K5: N | N5: 4 | O5: 136 | P5: 590 | Q5: 3200 | R5: = | S5: = | U5: Normopeso | Z5: O | AA5: SALTO IN LUNGO DA FERMO | AC5: NUMERICO
A6: 4 | B6: BIGETTI GIULIA | C6: X | D6: F | E6: 2003 | F6: 93.6 | G6: 173 | H6: 31.27401517 | I6: D | K6: N | N6: -2 | O6: 148 | P6: 619 | R6: ++ | S6: + | U6: Sovrappeso | V6: X | Z6: SPORT | AA6: ALUNNO SELEZIONATO PER SQUADRA | AC6: X
A7: 5 | B7: CASINI NICOLO' | C7: X | D7: M | E7: 2002 | F7: 69.8 | G7: 171 | H7: 23.87059266 | I7: D | K7: I | N7: 0 | O7: 196 | P7: 478 | Q7: 2600 | R7: ++ | S7: + | U7: Normopeso
A8: 6 | B8: CHAVEZ OBILITAS | D8: F | E8: 2001 | T8: Assente | Z8: TUTTI I DATI VANNO INSERITI IN FORMATO CAPSLOCK (MAIUSCOLO)
A9: 7 | B9: CHIARADONNA LUDOVICA | D9: F | E9: 2002 | T9: Assente
A10: 8 | B10: DE VINCENTI SARA | D10: F | E10: 2001 | T10: Assente
A11: 9 | B11: DI IACOVO UMBERTO | C11: X | D11: M | E11: 2002 | F11: 81 | G11: 176 | H11: 26.14927686 | I11: D | K11: S | N11: 9 | O11: 183 | P11: 469 | Q11: 2466 | R11: ++ | S11: + | U11: Normopeso
A12: 10 | B12: EBAID MIRA | D12: F | E12: 2002 | T12: Assente
A13: 11 | B13: FURCINTI MARIA LAURA | D13: F | E13: 2002 | T13: Assente
A14: 12 | B14: GRANDE CHRISTIAN | D14: M | E14: 1998 | T14: Assente
A15: 13 | B15: GUANZON MAHR | C15: X | D15: F | E15: 2000 | F15: 54.6 | G15: 150 | H15: 24.26666667 | I15: D | K15: S | N15: 0 | O15: 157 | P15: 625 | Q15: 2966 | R15: + | S15: = | U15: Normopeso
A16: 14 | B16: LEUZZI MARCANTONIO | C16: X | D16: M | E16: 2002 | F16: 55 | G16: 163 | H16: 20.70081674 | I16: D | K16: I | N16: -5 | O16: 166 | P16: 516 | Q16: 2503 | R16: ++ | S16: + | U16: Normopeso | V16: X
A17: 15 | B17: MUCCI ALESSIO | D17: M | E17: 2000 | T17: Assente
A18: 16 | B18: MARTINEZ CHAMUL DAYANA | C18: X | D18: F | E18: 2000 | F18: 47.6 | G18: 157 | H18: 19.31112824 | I18: D | K18: S | N18: 7 | O18: 173 | P18: 587 | Q18: 2644 | R18: ++ | S18: + | U18: Normopeso
A19: 17 | B19: OLARASU RAMONA | D19: F | E19: 2001 | T19: Assente
A20: 18 | B20: PACIONI ELEONORA | C20: X | D20: F | E20: 2002 | F20: 55.3 | G20: 170 | H20: 19.1349481 | I20: D | K20: S | N20: -4 | O20: 185 | P20: 494 | Q20: 2256 | R20: + | S20: ++ | U20: Normopeso
A21: 19 | B21: PAOLUCCI ALESSIA | C21: X | D21: F | E21: 2002 | F21: 81 | G21: 160 | H21: 31.640625 | I21: S | K21: N | N21: -3 | O21: 136 | P21: 594 | Q21: 2709 | R21: = | S21: ++ | U21: Sovrappeso
A22: 20 | B22: ROSSI EDOARDO FRANCESCO | C22: X | D22: M | E22: 2002 | F22: 68.8 | G22: 176 | H22: 22.2107438 | I22: D | K22: I | N22: 0 | O22: 186 | P22: 500 | Q22: 2525 | R22: + | S22: = | U22: Normopeso
A23: 21 | B23: SOCA THOMAS VALERINE | D23: M | E23: 1999 | T23: Assente
A24: 22 | B24: SOFFIATINI CLAUDIO | C24: X | D24: M | E24: 2001 | F24: 92 | G24: 185 | H24: 26.88093499 | I24: D | K24: I | N24: 0 | O24: 166 | P24: 506 | Q24: 2485 | R24: ++ | S24: = | U24: Normopeso
A25: 23 | B25: SPIZZICHINI DAVIDE | C25: X | D25: M | E25: 2002 | F25: 53.7 | G25: 163 | H25: 20.21152471 | I25: D | K25: S | O25: 182 | P25: 500 | Q25: 2472 | R25: + | S25: + | U25: Sottopeso
A26: 24 | B26: YOWAKIM GASMAN FAHMY | C26: X | D26: F | E26: 2002 | F26: 56.4 | G26: 165 | H26: 20.71625344 | I26: D | K26: N | N26: 7 | O26: 137 | P26: 619 | Q26: 2797 | U26: Normopeso
A27: 25
A28: 26
A29: 27
A30: 28
A31: 29
A32: 30
B35: Alunni : | C35: =COUNTIF(B3:B32,"<>"&"") -> 24 | I35: D | J35: S | K35: S | L35: N | M35: I
B36: Media | C36: =COUNTIF(C3:C32,"X")/C35 -> 0.5833333333 | D36: =(COUNTIFS(D3:D32,"M",C3:C32,"X")+COUNTIFS(D3:D32,"F",C3:C32,"X"))/C39 -> 1 | E36: =AVERAGE(E3:E32) -> 2001.25 | F36: =AVERAGEIFS(F3:F32,C3:C32,"X") -> 65.25714286 | G36: =AVERAGEIFS(G3:G32,C3:C32,"X") -> 166.6428571 | H36: =AVERAGEIFS(H3:H32,C3:C32,"X") -> 23.32745993 | I36: =(COUNTIFS(I3:I32,"D",C3:C32,"X")/C39) -> 0.8571428571 | J36: =(COUNTIFS(I3:I32,"S",C3:C32,"X")/C39) -> 0.1428571429 | K36: =(COUNTIFS(K3:K32,"S",C3:C32,"X")/C39) -> 0.3571428571 | L36: =(COUNTIFS(K3:K32,"N",C3:C32,"X")/C39) -> 0.2857142857 | M36: =(COUNTIFS(K3:K32,"I",C3:C32,"X")/C39) -> 0.3571428571 | N36: =AVERAGEIFS(N3:N32,C3:C32,"X") -> 1 | O36: =AVERAGEIFS(O3:O32,C3:C32,"X") -> 167.7142857 | P36: =AVERAGEIFS(P3:P32,C3:C32,"X") -> 542.2142857 | Q36: =AVERAGEIFS(Q3:Q32,C3:C32,"X") -> 2613.076923 | R36: =COUNTIF(R$3:R$32,"=++")/COUNTIFS(R$3:R$32,"<>X",R$3:R$32,"<>") -> 0.4285714286 | S36: =COUNTIF(S$3:S$32,"=++")/COUNTIFS(S$3:S$32,"<>X",S$3:S$32,"<>") -> 0.1538461538
B37: Media maschi | C37: =COUNTIFS(C3:C32,"X",D3:D32,"M")/C35 -> 0.2916666667 | D37: =COUNTIFS(D3:D32,"M",C3:C32,"X")/C39 -> 0.5 | E37: =AVERAGEIFS(E3:E32,C3:C32,"X",D3:D32,"M") -> 2001.857143 | F37: =AVERAGEIFS(F3:F32,C3:C32,"X",D3:D32,"M") -> 67.01428571 | G37: =AVERAGEIFS(G3:G32,C3:C32,"X",D3:D32,"M") -> 171.5714286 | H37: =AVERAGEIFS(H3:H32,C3:C32,"X",D3:D32,"M") -> 22.50311829 | I37: =(COUNTIFS(I3:I32,"D",C3:C32,"X",D3:D32,"M")/COUNTIFS(D3:D32,"M",C3:C32,"X")) -> 1 | J37: =(COUNTIFS(I3:I32,"S",C3:C32,"X",D3:D32,"M")/COUNTIFS(D3:D32,"M",C3:C32,"X")) -> 0 | K37: =(COUNTIFS(K3:K32,"S",C3:C32,"X",D3:D32,"M")/COUNTIFS(D3:D32,"M",C3:C32,"X")) -> 0.2857142857 | L37: =(COUNTIFS(K3:K32,"N",C3:C32,"X",D3:D32,"M")/COUNTIFS(D3:D32,"M",C3:C32,"X")) -> 0 | M37: =(COUNTIFS(K3:K32,"I",C3:C32,"X",D3:D32,"M")/COUNTIFS(D3:D32,"M",C3:C32,"X")) -> 0.7142857143 | N37: =AVERAGEIFS(N3:N32,C3:C32,"X",D3:D32,"M") -> 0.6666666667 | O37: =AVERAGEIFS(O3:O32,C3:C32,"X",D3:D32,"M") -> 182.2857143 | P37: =AVERAGEIFS(P3:P32,C3:C32,"X",D3:D32,"M") -> 494.7142857 | Q37: =AVERAGEIFS(Q3:Q32,C3:C32,"X",D3:D32,"M") -> 2485.428571 | R37: =COUNTIF(R$3:R$32,"=+")/COUNTIFS(R$3:R$32,"<>X",R$3:R$32,"<>") -> 0.2857142857 | S37: =COUNTIF(S$3:S$32,"=+")/COUNTIFS(S$3:S$32,"<>X",S$3:S$32,"<>") -> 0.4615384615
B38: Media femmine | C38: =COUNTIFS(C4:C32,"X",D4:D32,"F")/C35 -> 0.2916666667 | D38: =COUNTIFS(D3:D32,"F",C3:C32,"X")/C39 -> 0.5 | E38: =AVERAGEIFS(E3:E32,C3:C32,"X",D3:D32,"F") -> 2001.428571 | F38: =AVERAGEIFS(F3:F32,C3:C32,"X",D3:D32,"F") -> 63.5 | G38: =AVERAGEIFS(G3:G32,C3:C32,"X",D3:D32,"F") -> 161.7142857 | H38: =AVERAGEIFS(H3:H32,C3:C32,"X",D3:D32,"F") -> 24.15180157 | I38: =(COUNTIFS(I3:I32,"D",C3:C32,"X",D3:D32,"F")/COUNTIFS(D3:D32,"F",C3:C32,"X")) -> 0.7142857143 | J38: =(COUNTIFS(I3:I32,"S",C3:C32,"X",D3:D32,"F")/COUNTIFS(D3:D32,"F",C3:C32,"X")) -> 0.2857142857 | K38: =(COUNTIFS(K3:K32,"S",C3:C32,"X",D3:D32,"F")/COUNTIFS(D3:D32,"F",C3:C32,"X")) -> 0.4285714286 | L38: =(COUNTIFS(K3:K32,"N",C3:C32,"X",D3:D32,"F")/COUNTIFS(D3:D32,"F",C3:C32,"X")) -> 0.5714285714 | M38: =(COUNTIFS(K3:K32,"I",C3:C32,"X",D3:D32,"F")/COUNTIFS(D3:D32,"F",C3:C32,"X")) -> 0 | N38: =AVERAGEIFS(N3:N32,C3:C32,"X",D3:D32,"F") -> 1.285714286 | O38: =AVERAGEIFS(O3:O32,C3:C32,"X",D3:D32,"F") -> 153.1428571 | P38: =AVERAGEIFS(P3:P32,C3:C32,"X",D3:D32,"F") -> 589.7142857 | Q38: =AVERAGEIFS(Q3:Q32,C3:C32,"X",D3:D32,"F") -> 2762 | R38: =COUNTIF(R$3:R$32,"==")/COUNTIFS(R$3:R$32,"<>X",R$3:R$32,"<>") -> 0.2142857143 | S38: =COUNTIF(S$3:S$32,"==")/COUNTIFS(S$3:S$32,"<>X",S$3:S$32,"<>") -> 0.3846153846
B39: Presenti | C39: =COUNTIF(C3:C32,"X") -> 14 | N39: Record | R39: =COUNTIF(R$3:R$32,"-")/COUNTIFS(R$3:R$32,"<>X",R$3:R$32,"<>") -> 0 | S39: =COUNTIF(S$3:S$32,"-")/COUNTIFS(S$3:S$32,"<>X",S$3:S$32,"<>") -> 0
N40: =MAX(N3:N32) -> 9 | O40: =MAX(O3:O32) -> 197 | P40: =MIN(P3:P32) -> 469 | Q40: =MIN(Q3:Q32) -> 2256 | R40: =COUNTIF(R$3:R$32,"--")/COUNTIFS(R$3:R$32,"<>X",R$3:R$32,"<>") -> 0 | S40: =COUNTIF(S$3:S$32,"--")/COUNTIFS(S$3:S$32,"<>X",S$3:S$32,"<>") -> 0
N41: =INDEX(B3:B32,MATCH(N40,N3:N32,0),1) -> DI IACOVO UMBERTO | O41: =INDEX(B3:B32,MATCH(O40,O3:O32,0),1) -> AMORI MARCELLO | P41: =INDEX(B3:B32,MATCH(P40,P3:P32,0),1) -> DI IACOVO UMBERTO | Q41: =INDEX(B3:B32,MATCH(Q40,Q3:Q32,0),1) -> PACIONI ELEONORA

Sheet MODELLO
A1: MODELLO | Y1: LEGENDA
A2: N° | B2: Alunno | C2: Presente | D2: Sex | E2: Anno | F2: Peso | G2: Statura | H2: BMI | I2: S/D | K2: S/N/I | N2: Flessibilità | O2: Ldf | P2: Velocità | Q2: Destrezza | R2: Volley | S2: Basket | T2: Note | V2: Sport | Y2: COLONNA | Z2: FUNZIONE | AB2: SIMBOLO
A3: 1 | H3: =IF(C3 = "X",F3/(G3/100)^2,"") ->  | T3: =IF(AND(C3<>"X",B3<>""),"Assente",IF(AND(B3="",C3="X"),"??","")) ->  | U3: =IF(AND(C3="X",D3="M"),IF(H3<>"",IF(H3<20.7,"Sottopeso",IF(H3>27.8,"Sovrappeso","Normopeso")),""),IF(AND(C3="X",D3="F"),IF(H3<>"",IF(H3<19.1,"Sottopeso",IF(H3>27.3,"Sovrappeso","Normopeso")),""),"")) ->  | Y3: I-J | Z3: MANCINO O DESTRO | AB3: S/D
A4: 2 | H4: =IF(C4 = "X",F4/(G4/100)^2,"") ->  | T4: =IF(AND(C4<>"X",B4<>""),"Assente",IF(AND(B4="",C4="X"),"??","")) ->  | U4: =IF(AND(C4="X",D4="M"),IF(H4<>"",IF(H4<20.7,"Sottopeso",IF(H4>27.8,"Sovrappeso","Normopeso")),""),IF(AND(C4="X",D4="F"),IF(H4<>"",IF(H4<19.1,"Sottopeso",IF(H4>27.3,"Sovrappeso","Normopeso")),""),"")) ->  | Y4: K-L-M | Z4: SPORTIVO - NON SPORTIVO - INTERMEDIO | AB4: S/N/I
A5: 3 | Y5: O | Z5: SALTO IN LUNGO DA FERMO | AB5: NUMERICO
A6: 4 | Y6: SPORT | Z6: ALUNNO SELEZIONATO PER SQUADRA | AB6: X
A7: 5
A8: 6 | Y8: TUTTI I DATI VANNO INSERITI IN FORMATO CAPSLOCK (MAIUSCOLO)
A9: 7
A10: 8
A11: 9
A12: 10
A13: 11
A14: 12
A15: 13
A16: 14
A17: 15
A18: 16
A19: 17
A20: 18
A21: 19
A22: 20
A23: 21
A24: 22
A25: 23
A26: 24
A27: 25
A28: 26
A29: 27
A30: 28
A31: 29
A32: 30
B35: Alunni : | C35: =COUNTIF(B3:B32,"<>"&"") -> 22 | I35: D | J35: S | K35: S | L35: N | M35: I
B36: Media | C36: =COUNTIF(C3:C32,"X")/C35 -> 0 | D36: =(COUNTIFS(D3:D32,"M",C3:C32,"X")+COUNTIFS(D3:D32,"F",C3:C32,"X"))/C39 ->  | E36: =AVERAGE(E3:E32) ->  | F36: =AVERAGEIFS(F3:F32,C3:C32,"X") ->  | G36: =AVERAGEIFS(G3:G32,C3:C32,"X") ->  | H36: =AVERAGEIFS(H3:H32,C3:C32,"X") ->  | I36: =(COUNTIFS(I3:I32,"D",C3:C32,"X")/C39) ->  | J36: =(COUNTIFS(I3:I32,"S",C3:C32,"X")/C39) ->  | K36: =(COUNTIFS(K3:K32,"S",C3:C32,"X")/C39) ->  | L36: =(COUNTIFS(K3:K32,"N",C3:C32,"X")/C39) ->  | M36: =(COUNTIFS(K3:K32,"I",C3:C32,"X")/C39) ->  | N36: =AVERAGEIFS(N3:N32,C3:C32,"X") ->  | O36: =AVERAGEIFS(O3:O32,C3:C32,"X") ->  | P36: =AVERAGEIFS(P3:P32,C3:C32,"X") ->  | Q36: =AVERAGEIFS(Q3:Q32,C3:C32,"X") ->  | R36: =COUNTIF(R$3:R$32,"=++")/COUNTIFS(R$3:R$32,"<>X",R$3:R$32,"<>") ->  | S36: =COUNTIF(S$3:S$32,"=++")/COUNTIFS(S$3:S$32,"<>X",S$3:S$32,"<>") -> 
B37: Media maschi | C37: =COUNTIFS(C3:C32,"X",D3:D32,"M")/C35 -> 0 | D37: =COUNTIFS(D3:D32,"M",C3:C32,"X")/C39 ->  | E37: =AVERAGEIFS(E3:E32,C3:C32,"X",D3:D32,"M") ->  | F37: =AVERAGEIFS(F3:F32,C3:C32,"X",D3:D32,"M") ->  | G37: =AVERAGEIFS(G3:G32,C3:C32,"X",D3:D32,"M") ->  | H37: =AVERAGEIFS(H3:H32,C3:C32,"X",D3:D32,"M") ->  | I37: =(COUNTIFS(I3:I32,"D",C3:C32,"X",D3:D32,"M")/COUNTIFS(D3:D32,"M",C3:C32,"X")) ->  | J37: =(COUNTIFS(I3:I32,"S",C3:C32,"X",D3:D32,"M")/COUNTIFS(D3:D32,"M",C3:C32,"X")) ->  | K37: =(COUNTIFS(K3:K32,"S",C3:C32,"X",D3:D32,"M")/COUNTIFS(D3:D32,"M",C3:C32,"X")) ->  | L37: =(COUNTIFS(K3:K32,"N",C3:C32,"X",D3:D32,"M")/COUNTIFS(D3:D32,"M",C3:C32,"X")) ->  | M37: =(COUNTIFS(K3:K32,"I",C3:C32,"X",D3:D32,"M")/COUNTIFS(D3:D32,"M",C3:C32,"X")) ->  | N37: =AVERAGEIFS(N3:N32,C3:C32,"X",D3:D32,"M") ->  | O37: =AVERAGEIFS(O3:O32,C3:C32,"X",D3:D32,"M") ->  | P37: =AVERAGEIFS(P3:P32,C3:C32,"X",D3:D32,"M") ->  | Q37: =AVERAGEIFS(Q3:Q32,C3:C32,"X",D3:D32,"M") ->  | R37: =COUNTIF(R$3:R$32,"=+")/COUNTIFS(R$3:R$32,"<>X",R$3:R$32,"<>") ->  | S37: =COUNTIF(S$3:S$32,"=+")/COUNTIFS(S$3:S$32,"<>X",S$3:S$32,"<>") -> 
B38: Media femmine | C38: =COUNTIFS(C4:C32,"X",D4:D32,"F")/C35 -> 0 | D38: =COUNTIFS(D3:D32,"F",C3:C32,"X")/C39 ->  | E38: =AVERAGEIFS(E3:E32,C3:C32,"X",D3:D32,"F") ->  | F38: =AVERAGEIFS(F3:F32,C3:C32,"X",D3:D32,"F") ->  | G38: =AVERAGEIFS(G3:G32,C3:C32,"X",D3:D32,"F") ->  | H38: =AVERAGEIFS(H3:H32,C3:C32,"X",D3:D32,"F") ->  | I38: =(COUNTIFS(I3:I32,"D",C3:C32,"X",D3:D32,"F")/COUNTIFS(D3:D32,"F",C3:C32,"X")) ->  | J38: =(COUNTIFS(I3:I32,"S",C3:C32,"X",D3:D32,"F")/COUNTIFS(D3:D32,"F",C3:C32,"X")) ->  | K38: =(COUNTIFS(K3:K32,"S",C3:C32,"X",D3:D32,"F")/COUNTIFS(D3:D32,"F",C3:C32,"X")) ->  | L38: =(COUNTIFS(K3:K32,"N",C3:C32,"X",D3:D32,"F")/COUNTIFS(D3:D32,"F",C3:C32,"X")) ->  | M38: =(COUNTIFS(K3:K32,"I",C3:C32,"X",D3:D32,"F")/COUNTIFS(D3:D32,"F",C3:C32,"X")) ->  | N38: =AVERAGEIFS(N3:N32,C3:C32,"X",D3:D32,"F") ->  | O38: =AVERAGEIFS(O3:O32,C3:C32,"X",D3:D32,"F") ->  | P38: =AVERAGEIFS(P3:P32,C3:C32,"X",D3:D32,"F") ->  | Q38: =AVERAGEIFS(Q3:Q32,C3:C32,"X",D3:D32,"F") ->  | R38: =COUNTIF(R$3:R$32,"==")/COUNTIFS(R$3:R$32,"<>X",R$3:R$32,"<>") ->  | S38: =COUNTIF(S$3:S$32,"==")/COUNTIFS(S$3:S$32,"<>X",S$3:S$32,"<>") -> 
B39: Presenti | C39: =COUNTIF(C3:C32,"X") -> 0 | N39: Record | R39: =COUNTIF(R$3:R$32,"-")/COUNTIFS(R$3:R$32,"<>X",R$3:R$32,"<>") ->  | S39: =COUNTIF(S$3:S$32,"-")/COUNTIFS(S$3:S$32,"<>X",S$3:S$32,"<>") -> 
N40: =MAX(N3:N32) -> 0 | O40: =MAX(O3:O32) -> 0 | P40: =MIN(P3:P32) -> 0 | Q40: =MIN(Q3:Q32) -> 0 | R40: =COUNTIF(R$3:R$32,"--")/COUNTIFS(R$3:R$32,"<>X",R$3:R$32,"<>") ->  | S40: =COUNTIF(S$3:S$32,"--")/COUNTIFS(S$3:S$32,"<>X",S$3:S$32,"<>") -> 
N41: =INDEX(B3:B32,MATCH(N40,N3:N32,0),1) ->  | O41: =INDEX(B3:B32,MATCH(O40,O3:O32,0),1) ->  | P41: =INDEX(B3:B32,MATCH(P40,P3:P32,0),1) ->  | Q41: =INDEX(B3:B32,MATCH(Q40,Q3:Q32,0),1) -> 
